{"text_format":"1","workbook":"xlsx","n_sheets":13,"sheets":["Form Instructions","Project Information","ProjectInfo Validation","Terms and Conditions","Equipment Input","Measure Summary","Technical & Input Instructions","Equipment Incentives","Input Key","Validation","Lookups","Version Tracking","AEG Import"],"not_rendered":{"charts":0,"images":6,"macros":1,"external_links":0,"defined_names":2465,"comments":0,"pivot_tables":0},"unopened":[],"bounds":{"document_bytes":16777216,"sheet_cells":100000,"rows_first":2000,"rows_last":500,"rows_between":2000,"halvings":0,"cell_chars":16384,"cell_head_chars":4096},"cells_cut":0,"cells_raw":0,"read":"whole","date_system":"1900"}

{"sheet":"Form Instructions","index":0,"n_rows":29,"n_cols":18,"rows_kept":29,"cut":false,"hidden":false,"merged":[[28,2,28,10],[28,11,28,18],[5,3,6,4],[5,15,6,16],[14,11,16,18],[14,1,14,9],[16,1,16,9],[15,1,15,9],[19,1,19,18],[21,1,21,7],[21,8,21,18],[22,1,22,18],[24,2,24,17],[26,2,26,17],[8,4,8,16],[8,17,8,18],[11,1,11,18],[13,11,13,18],[1,4,1,15],[2,6,2,14],[3,6,3,14],[4,6,4,14],[5,6,6,7],[5,9,6,10],[5,12,6,13],[13,1,13,9]]}
[]
[null,null,null,null,"Food Service & High-Efficiency Equipment - Electronic Version"]
[null,null,null,null,null,null,"Dominion Energy South Carolina, Inc."]
[null,null,null,null,null,null,"Use Buttons Below to Navigate the Application"]
[]
[null,null,null,"Project Information & Signatures",null,null,"Equipment Input",null,null,"Technical Requirements & Input Instructions",null,null,"Equipment Incentives",null,null,"Terms & \nConditions"]
[]
[]
[null,null,null,null,null,null,null,null,null,null,null,null,null,null,null,null,null,"Version # 15.1"]
[]
[null,"Application and Instructions"]
[null,"The EnergyWise for Your Business Program is designed to help non-residential customers replace aging, inefficient equipment and systems with energy-efficient technologies. The program provides customers with incentives and technical assistance that will facilitate the installation of premium efficient equipment. For each program year (December 1–November 30), EnergyWise for Your Business incentive payments are capped per Customer Federal Tax ID number at $150,000 per Project type. Details of the program, including incentive levels and technical requirements, are subject to change without prior notice. \n\nYou may go to www.DominionEnergy.com/ForYourBizSC to get the most current program information, or you may call 877-784-7234."]
[]
[null,"Eligible Participants",null,null,null,null,null,null,null,null,null,"Pre-Approval Requirements "]
[null,"EnergyWise for Your Business is open to all non-residential electric customers within our service territory, except for customers eligible for Rate 23 and certain large retail customers who have elected to opt out of the Demand Side Management (DSM) programs by notifying us in writing using the Opt-Out form.",null,null,null,null,null,null,null,null,null,"All projects require pre-approval prior to ordering, purchasing or installing any equipment except for eligible Food Service and High-Efficiency projects with total incentives less than or equal to $1,000. \n\nAfter the application has been pre-approved by us, the customer will be notified in writing, assigned a project identification number, and given any specific instructions. The customer may then purchase and install the pre-approved equipment. For projects not requiring pre-approval, the applicant can purchase and install the qualifying equipment and submit a completed application form, supporting documentation and invoice within 60 days of the project invoice date."]
[null,"Eligible Equipment"]
[null,"Eligible equipment and incentive amounts are listed on the Equipment Incentives tab.  Eligible equipment include High Efficiency Food Preparation Equipment, Ice Machines,  Refrigerators and Freezers, Clothes Washers, High Efficiency Refrigerator Components, and Plug Load Controls.  These measures are subject to the associated technical eligibility criteria described on the Technical & Input Instructions tab. All equipment must be new; used or refurbished equipment is not eligible.  Leased Equipment is elligible for incentive if the Lease Terms are 24 months or greater."]
[]
[null,"Participation Instructions"]
[null,"Please review the program Terms and Conditions tab and the Technical & Input Instructions tab for all program rules and requirements. Tabs colored Blue should be filled in by applicant.  "]
[null,"Step 1"]
[null,"Complete the Project Information and Equipment Input tab. ",null,null,null,null,null,null,"Use the Technical & Input Instructions tab as a reference for what supporting documentation is required."]
[null,"Submit Completed Applications to: EnergyExperts@SC.DominionEnergyAccount.com."]
[null,"Step 2"]
[null,null,"Applications will be processed and we will notify the customer in writing when the review is complete and funds have been reserved. Upon receipt\nof program pre-approval, customers may purchase and install their energy efficient equipment. We will notify customers if an inspection of the facility is necessary prior to pre-approval.\n\nNote: Any changes in the proposed equipment, quantities, or operating conditions must be approved by us prior to implementing."]
[null,"Step 3"]
[null,null,"Upon project completion, please return the signed customer acknowledgment at bottom of the pre-approval letter along with proof of purchase. Dominion Energy South Carolina will notify customers if an inspection of the facility is necessary prior to final payment processing.\nProof of purchase must include an itemized invoice for all Energy Conservation Measures (ECMs) that may qualify for the EnergyWise for Your Business incentive. \nEach individual product or model number must include the corresponding costs and quantity. Labor and material must be listed separately when labor is included in the Overall Project Costs."]
[]
[null,"Questions","If you have questions, email EnergyExperts@SC.DominionEnergyAccount.com,",null,null,null,null,null,null,null,null,"visit  www.DominionEnergy.com/ForYourBizSC or call 877-784-7234."]

{"sheet":"Project Information","index":1,"n_rows":52,"n_cols":17,"rows_kept":52,"cut":false,"hidden":false,"merged":[[49,1,49,14],[50,1,50,14],[51,0,51,9],[47,0,48,2],[47,3,48,7],[47,8,47,9],[47,10,47,14],[48,8,48,12],[48,13,48,14],[41,0,41,14],[42,0,42,14],[43,0,43,14],[44,0,44,14],[45,0,45,14],[46,0,46,14],[34,1,34,14],[36,0,36,14],[37,0,37,14],[38,0,38,14],[39,0,39,14],[40,0,40,14],[32,0,32,2],[32,3,32,9],[32,11,32,14],[33,0,33,5],[33,6,33,9],[33,10,33,12],[33,13,33,14],[28,0,28,14],[29,0,29,14],[30,0,30,2],[30,3,30,8],[31,0,31,2],[31,3,31,8],[31,9,31,12],[31,13,31,14],[26,0,26,2],[26,3,26,9],[26,11,26,14],[27,0,27,2],[27,3,27,9],[27,11,27,14],[22,0,22,14],[23,0,23,2],[23,3,23,14],[24,0,24,2],[24,3,24,14],[25,0,25,2],[25,3,25,6],[25,8,25,9],[25,11,25,14],[19,0,19,2],[19,3,19,9],[19,11,19,14],[20,0,20,14],[21,0,21,8],[21,9,21,14],[17,0,17,2],[17,3,17,6],[17,8,17,9],[17,11,17,14],[18,0,18,2],[18,3,18,9],[18,11,18,14],[13,0,13,14],[14,0,14,14],[15,0,15,2],[15,3,15,14],[16,0,16,2],[16,3,16,14],[11,0,11,2],[11,3,11,9],[11,11,11,14],[12,0,12,2],[12,3,12,9],[12,11,12,14],[7,0,7,14],[8,0,8,2],[8,3,8,14],[9,0,9,14],[10,0,10,2],[10,3,10,6],[10,8,10,9],[10,11,10,14],[5,0,5,2],[5,3,5,9],[5,13,5,14],[6,0,6,2],[6,3,6,9],[6,10,6,12],[6,13,6,14],[3,0,3,2],[3,3,3,9],[3,10,3,12],[3,13,3,14],[4,0,4,2],[4,3,4,9],[4,10,4,12],[4,13,4,14],[0,0,0,14],[1,0,1,14],[2,0,2,2],[2,3,2,9],[2,10,2,12],[2,13,2,14]]}
["Dominion Energy South Carolina, Inc. (Fill in Blue and Orange Cells Only!)"]
["PROJECT INFORMATION"]
["Application Date",null,null,null,null,null,null,null,null,null,"Expected Completion Date"]
["Company Name",null,false,null,null,null,null,null,null,null,"Electric Account # "]
["Street Address (of the facility)  ",null,false,null,null,null,null,null,null,null,"Customer Federal Tax ID "]
["City",null,false,null,null,null,null,null,null,null,"State   "," SC","Zip  "]
["Building Type (select one)",null,false,null,null,null,null,null,null,null,"Please indicate \"other\" type:"]
["CUSTOMER CONTACT INFORMATION",null,false]
["Mailing Address:"]
["(where all correspondence will be mailed, including incentive check if payment is to the customer)"]
["City   ",null,null,null,null,null,null,"State   ",null,null,"Zip"]
["Contact Person     ",null,null,null,null,null,null,null,null,null,"Title"]
["Telephone No.       ",null,null,null,null,null,null,null,null,null,"Email"]
[]
["CONTRACTOR INFORMATION"]
["Company Name  "]
["Street Address   "]
["City   ",null,null,null,null,null,null,"State   ",null,null,"Zip"]
["Contact Person     ",null,null,null,null,null,null,null,null,null,"Title"]
["Telephone No.       ",null,false,null,null,null,null,null,null,null,"Email"]
[]
["Please indicate if the Customer or Contractor should be primary point of contact for this project:"]
["ADDITIONAL PRIMARY POINT OF CONTACT (IF APPLICABLE)"]
["Company Name  "]
["Street Address   "]
["City   ",null,null,null,null,null,null,"State   ",null,null,"Zip  "]
["Contact Person     ",null,null,null,null,null,null,null,null,null,"Title"]
["Telephone No.       ",null,null,null,null,null,null,null,null,null,"Email "]
[]
["PAYMENT INFORMATION"]
["Payment to:"]
["Federal Tax ID # (of recipient)",null,null,null,null,null,null,null,null,"Tax Status of Recipient (select one)"]
["Customer Name",null,null,null,null,null,null,null,null,null,"Title"]
["Customer Signature  (if payment to contractor, Customer must type his/her name in the orange box to the right and check the box below)    ",null,null,null,null,null,null,null,null,null,"Date (XX/XX/XXXX)"]
[false,"I understand and intend that my electronic, PDF or facsimile signature be accepted and have the same force and effect as an original signature."]
[]
["Checklist & Acknowledgement"]
["APPLICATION CHECKLIST"]
["For faster application processing, please include the following items with your application:"]
["Complete application: Project Information Tab, Customer Acknowledgment checkbox, and blue \"Equipment Input\" tab.",null,null,null,null,null,null,null,null,null,null,null,null,null,null,null,false]
["Electric account number at top of page. Attach copy of electric bill.",null,null,null,null,null,null,null,null,null,null,null,null,null,null,null,false]
["The most recent IRS Form W-9 completed for payment recipient. Physical signature is required on the W-9 Form. If payment is to a contractor, both the customer's and the contractor's W-9 Forms must be provided.",null,null,null,null,null,null,null,null,null,null,null,null,null,null,null,false]
["Supporting documentation to include manufacturer’s specification (cut) sheets for equipment included in this application.",null,null,null,null,null,null,null,null,null,null,null,null,null,null,null,false]
["Customer signature and proof of purchase (contractor receipts), at time of project completion. See Terms and Conditions for invoicing requirements.",null,false,null,null,null,null,null,null,null,null,null,null,null,null,null,false]
["Applications submitted for processing will be processed in the order in which they are received. Applicants will be notified as to their pre-approval status and/or any pre-inspection requirements within 10 business days from receipt of complete application. Applicants will be notified if post-installation inspections are required."]
[]
["CUSTOMER ACKNOWLEDGMENT"]
["Authorized Representative  ",null,null,null,null,null,null,null,"Title"]
[null,null,null,null,null,null,null,null,"Date (XX/XX/XXXX)"]
[false,"By checking this box and typing my name, I hereby certify that all statements made on this application are correct to the best of my knowledge and that I have read and agree to the Terms and Conditions. Furthermore, I understand and intend that my electronic, PDF or facsimile signature be accepted and have the same force and effect as an original signature.\n\nNote: Upon completion of project, Dominion Energy South Carolina, Inc. customer of record must sign and return the written pre-approval letter and provide invoices for all energy efficiency measures."]
[false,"For Projects Not Requiring Pre-Approval ≤ $1,000 Incentive Only: \nBy checking this box and typing my name, I hereby certify that all statements made on this application are correct to the best of my knowledge and that I have read and agree to the Terms and Conditions. Furthermore, I understand and intend that my electronic, PDF or facsimile signature be accepted and have the same force and effect as an original signature.\n\nNote: Application must include supporting documentation and copy of invoice that is dated within 60 days before application date."]
["Dominion Energy South Carolina, Inc. Food Service Application - Electronic Version",null,null,null,null,null,null,null,null,null,null,null,null,"Version",15.1]

{"sheet":"ProjectInfo Validation","index":2,"n_rows":168,"n_cols":5,"rows_kept":168,"cut":false,"hidden":true,"merged":[]}
["Building Type","Primary Contact","Tax Status","Payment To","Cities"]
["Convenience/C-store","Customer","Corporation","Customer","Adams Run"]
["Fitness/Recreation","Contractor","LLC","Contractor","Aiken"]
["Grocery","Other (fill out below)","Partnership",null,"Allendale"]
["Health Facility",null,"Individual Propiertorship",null,"Arlington Estates"]
["Industrial",null,"Not for Profit",null,"Awendaw"]
["Lodging",null,null,null,"Bamberg"]
["Multifamily",null,null,null,"Barnwell"]
["Office",null,null,null,"Batesburg Leesville"]
["Religious Facility",null,null,null,"Bath"]
["Restaurant",null,null,null,"Beaufort"]
["Retail",null,null,null,"Beech Island"]
["School (K-12)",null,null,null,"Blackville"]
["School (University/College)",null,null,null,"Blair"]
["Warehouse",null,null,null,"Bluffton"]
["Other",null,null,null,"Blythewood"]
[null,null,null,null,"Bowman"]
[null,null,null,null,"Branchville"]
[null,null,null,null,"Brunson"]
[null,null,null,null,"Calhoun Falls"]
[null,null,null,null,"Cameron"]
[null,null,null,null,"Canadys"]
[null,null,null,null,"Carlisle"]
[null,null,null,null,"Cayce"]
[null,null,null,null,"Chapin"]
[null,null,null,null,"Chappels"]
[null,null,null,null,"Charleston"]
[null,null,null,null,"Childs"]
[null,null,null,null,"Clarks Hill"]
[null,null,null,null,"Columbia"]
[null,null,null,null,"Coosawatchie"]
[null,null,null,null,"Cope"]
[null,null,null,null,"Cottageville"]
[null,null,null,null,"Cross"]
[null,null,null,null,"Cross Roads"]
[null,null,null,null,"Daniel Island"]
[null,null,null,null,"Daufuskie Island"]
[null,null,null,null,"Denmark"]
[null,null,null,null,"Dorchester"]
[null,null,null,null,"Early Branch"]
[null,null,null,null,"East Lake Hills"]
[null,null,null,null,"Eastover"]
[null,null,null,null,"Edgefield"]
[null,null,null,null,"Edisto Island"]
[null,null,null,null,"Ehrhardt"]
[null,null,null,null,"Elgin"]
[null,null,null,null,"Elko"]
[null,null,null,null,"Elloree"]
[null,null,null,null,"Estill"]
[null,null,null,null,"Eutawville"]
[null,null,null,null,"Fairfax"]
[null,null,null,null,"Folly Beach"]
[null,null,null,null,"Fort Motte"]
[null,null,null,null,"Furman"]
[null,null,null,null,"Garnett"]
[null,null,null,null,"Gaston"]
[null,null,null,null,"Gifford"]
[null,null,null,null,"Gilbert"]
[null,null,null,null,"Gloverville"]
[null,null,null,null,"Goose Creek"]
[null,null,null,null,"Graniteville"]
[null,null,null,null,"Grays Hill"]
[null,null,null,null,"Green Pond"]
[null,null,null,null,"Hampton"]
[null,null,null,null,"Hanahan"]
[null,null,null,null,"Hardeeville"]
[null,null,null,null,"Harleyville"]
[null,null,null,null,"Hilda"]
[null,null,null,null,"Holly Hill"]
[null,null,null,null,"Hollywood"]
[null,null,null,null,"Hopkins"]
[null,null,null,null,"Irmo"]
[null,null,null,null,"Isle of Palms"]
[null,null,null,null,"Jackson"]
[null,null,null,null,"Jacksonboro"]
[null,null,null,null,"James Island"]
[null,null,null,null,"Jenkinsville"]
[null,null,null,null,"Johns Island"]
[null,null,null,null,"Johnston"]
[null,null,null,null,"Ladson"]
[null,null,null,null,"Ladys Island"]
[null,null,null,null,"Langley"]
[null,null,null,null,"Leesville"]
[null,null,null,null,"Lexington"]
[null,null,null,null,"Lincolnville"]
[null,null,null,null,"Little Mountain"]
[null,null,null,null,"Livingston"]
[null,null,null,null,"Lobeco"]
[null,null,null,null,"Lodge"]
[null,null,null,null,"Lugoff"]
[null,null,null,null,"Luray"]
[null,null,null,null,"Martin"]
[null,null,null,null,"Mc Clellanville"]
[null,null,null,null,"Mc Cormick"]
[null,null,null,null,"Modoc"]
[null,null,null,null,"Moncks Corner"]
[null,null,null,null,"Monetta"]
[null,null,null,null,"Montmorenci"]
[null,null,null,null,"Mount Carmel"]
[null,null,null,null,"Mount Pleasant"]
[null,null,null,null,"Muphys Estates"]
[null,null,null,null,"Newberry"]
[null,null,null,null,"North"]
[null,null,null,null,"North Augusta"]
[null,null,null,null,"North Charleston"]
[null,null,null,null,"Northeast"]
[null,null,null,null,"Norway"]
[null,null,null,null,"Oakridge"]
[null,null,null,null,"Okatie"]
[null,null,null,null,"Olar"]
[null,null,null,null,"Olympia"]
[null,null,null,null,"Orangeburg"]
[null,null,null,null,"Parksville"]
[null,null,null,null,"Peak"]
[null,null,null,null,"Pelion"]
[null,null,null,null,"Perry"]
[null,null,null,null,"Pineland"]
[null,null,null,null,"Pomaria"]
[null,null,null,null,"Pontiac"]
[null,null,null,null,"Port Royal"]
[null,null,null,null,"Prosperity"]
[null,null,null,null,"Ravenel"]
[null,null,null,null,"Reevesville"]
[null,null,null,null,"Ridge Spring"]
[null,null,null,null,"Ridgeland"]
[null,null,null,null,"Ridgeville"]
[null,null,null,null,"Ridgeway"]
[null,null,null,null,"Rosewood"]
[null,null,null,null,"Round O"]
[null,null,null,null,"Rowesville"]
[null,null,null,null,"Ruffin"]
[null,null,null,null,"Saint George"]
[null,null,null,null,"Saint Helena Island"]
[null,null,null,null,"Saluda"]
[null,null,null,null,"Santee"]
[null,null,null,null,"Scotia"]
[null,null,null,null,"Seabrook"]
[null,null,null,null,"Sheldon"]
[null,null,null,null,"Sieglers Crossroads"]
[null,null,null,null,"Smoaks"]
[null,null,null,null,"Springfield"]
[null,null,null,null,"State Park"]
[null,null,null,null,"Sullivans Island"]
[null,null,null,null,"Summerville"]
[null,null,null,null,"Swansea"]
[null,null,null,null,"Sycamore"]
[null,null,null,null,"Tillman"]
[null,null,null,null,"Trenton"]
[null,null,null,null,"Troy"]
[null,null,null,null,"Ulmer"]
[null,null,null,null,"Union"]
[null,null,null,null,"University Park"]
[null,null,null,null,"Vance"]
[null,null,null,null,"Varnville"]
[null,null,null,null,"Vaucluse"]
[null,null,null,null,"Wagener"]
[null,null,null,null,"Walterboro"]
[null,null,null,null,"Ward"]
[null,null,null,null,"Warrenville"]
[null,null,null,null,"West Columbia"]
[null,null,null,null,"White Hall"]
[null,null,null,null,"White Rock"]
[null,null,null,null,"Wildwood"]
[null,null,null,null,"Williams"]
[null,null,null,null,"Williston"]
[null,null,null,null,"Windsor"]
[null,null,null,null,"Winnsboro"]
[null,null,null,null,"Yemassee"]

{"sheet":"Terms and Conditions","index":3,"n_rows":8,"n_cols":4,"rows_kept":8,"cut":false,"hidden":false,"merged":[[0,0,0,1],[1,0,1,1],[2,3,2,4],[2,0,6,0],[2,1,6,1]]}
["Dominion Energy South Carolina, Inc."]
["TERMS AND CONDITIONS"]
["1.  Eligibility: EnergyWise for Your Business Program (“Program”) incentives are available to non-residential electric customers for the purchase and installation of qualifying energy conservation measures (ECMs) in the Dominion Energy South Carolina service territory, subject to these Terms and Conditions (T&Cs). The process of purchasing and installing ECMs for eligible Customers pursuant to the Program is referred to herein as a “Project” or “Projects”.  Customers eligible for Rate 23 and specific large retail customers who have elected to opt out of Demand Side Management programs, by notifying us in writing using the Opt-Out form provided, are not eligible to participate. Dominion Energy South Carolina and our Program implementer (“Implementer”) (together, “We”) reserve the right to deny any application that may result in our exceeding its Program budget. Program incentives are limited, offered on a first-come/first-served basis, and are subject to Project and Customer eligibility and funds availability.  For each Program year (December 1 – November 30), Program incentive payments are capped per Customer Federal tax ID number at $150,000 per Project type.\n\n2. Project Types: The Program includes the following five Project types: Lighting Projects, HVAC and Mechanical Projects, Food Service and High Efficiency Equipment Projects, Agriculture Projects and Custom Projects. Lighting projects include Projects that use the Retrofit and New Construction Lighting Application.  HVAC and Mechanical Projects include Projects listed on the HVAC Application and the Compressed Air and Motors Application including Unitary HVAC, Chillers, Heat Pump Water Heaters, Window Film, Cool Roof, Variable Frequency Drives, Guestroom Energy Management Systems, Advanced Roof Top Controls, Compressed Air Engineered Nozzles, Zero Loss Condensate Drains and High Efficiency Motors.  Food Service and High Efficiency Equipment Projects include all cooking equipment and “plug load” equipment that is incentivized under the Food Service and High-Efficiency Equipment Application. Restaurant cooking equipment, ice machines, vending machine and refrigeration controls, commercial washers/dryers, and lighting that may be included inside the aforementioned equipment are considered Food Service and High Efficiency Equipment Projects.  Agriculture Projects include all agriculture equipment that is incentivized under the Agriculture Application.  Custom Projects are Projects that can demonstrate cost effective and lasting energy efficiency and do not fall under one of the aforementioned Project types. These Projects are “custom” tailored to the Customer for each Project and cannot receive a prescriptive incentive as the savings varies widely with each Project and technology.  Building controls, Building Tune-ups, Whole Building Solutions, System Optimization, Technical Services, and new emerging technologies generally fall under this Project type.  The above examples are provided for illustrative purposes only and may not be inclusive of all Projects.\n\n3. Authorization, Program Changes, Suspension, or Cancellation: We may change the Program requirements, incentives or T&Cs, including suspending acceptance of applications or terminating the Program, at any time and without notice. In the event of a Program change, pre-approved applications will be processed to completion under the T&Cs in effect at time of pre-approval. Submission of a completed application does not entitle Customer to Program participation. For all Projects, entitlement to Program participation and our obligation to pay incentives may occur only after we have granted written authorization, which we may grant or not at its sole discretion.\n\n4. Project Approval: Pre-approval is required for all Projects except for eligible Food Service and High-Efficiency projects with total incentives less than or equal to $1,000. For Projects not requiring pre-approval, the customer may purchase and install the qualifying equipment and submit a completed application form, supporting documentation and invoice within 60 days of the equipment’s invoice date. For Projects requiring pre-approval, we reserve the right to inspect any Project prior to pre-approval.  For Projects requiring pre-approval, no project-related ECMs may be ordered or installed prior to the date of our pre-approval. Violation of this prohibition will disqualify the ECM for incentives. Projects must be completed by the date listed on the pre-approval notification letter (within 180 calendar days for retrofit projects or one year for new construction projects).\n\n5. Creditworthiness: An incentive payment is conditioned upon and subject to Customer maintaining its financial creditworthiness and keeping its account in good standing.   At any time prior to the issuance of an incentive check, we may request financial information to support its financial due diligence procedures. Customer agrees to assist in this reasonable financial review.  If we believe in good faith that the Customer’s account is not in good standing, or if creditworthiness of participant has been diminished, we may reject approval of an incentive payment. \n\n6.  Proof of Purchase: Prior to our verification of the ECM installation, Customer must provide copies of all invoices or other appropriate documentation that clearly verifies the costs of purchasing and installing the ECMs, including all material, labor, and equipment discounts. Invoices must indicate a verifiable breakout of all ECMs purchased for installation under the ECM incentives application, including model numbers and quantity.\n\n7.  Project Verification: We (or our Third-Party Evaluator “Evaluator”) may conduct an inspection of Customer’s facility to verify pre- and post-installation conditions or verify documentation prior to incentive payment at any time after receipt of an application. No warranty is expressed or implied by this verification. We are not obligated to pay any incentive until it has performed a satisfactory post-installation inspection. Should we determine that ECMs were not installed in accordance with the approved application, or if an unapproved ECM was installed, or if the installation was not consistent  with generally accepted engineering/construction practices, changes may be required before  payment is issued. Notwithstanding anything to the contrary, should we determine at any point before payment of the incentive that there has been significant deviation in the type, amount, cost  or performance of the ECMs underlying this incentive commitment that were set forth in the  Program application and pre-approved, we retain the right to revoke this commitment or reduce the  final incentive amount accordingly. We reserve this right despite a satisfactory post-installation inspection. Customer agrees to provide prompt notice to us of any significant deviation in the type, amount, cost or performance of the ECMs underlying this incentive commitment that were set forth in the Program application and pre-approved by us.","8. Customer Tax Obligation: Customer or Customer’s designated contractor is responsible for declaring and paying any and all applicable federal, state, and local taxes that may be owed on any incentive payment. Neither Dominion Energy South Carolina, Inc. nor any of its subsidiaries shall be liable for any federal, state, and local taxes that may be owed on or as a result of any incentive payment. The party receiving the incentive payment (Customer or Contractor) must complete IRS Form W-9 and submit it to us with the incentive application materials.  If payment is to a contractor, customer's W-9 must also be provided.\n\n9. Compliance: Customer is responsible for obtaining any and all necessary licenses and permits related to the installation of ECMs. Customer also agrees to comply with all federal, state, and local laws, codes, and regulations related to the installation and disposal of all equipment.\n\n10. Removal of Equipment: Customer agrees to remove and dispose of the equipment being replaced by the ECMs in accordance with all legal requirements. Customer agrees not to re-install any of this equipment in our service territory or transfer it to any other party for such installation.\n\n11. Replacement of Failed Equipment: Customers who install ECMs are expected to replace any of the ECMs that fail with similar or superior energy savings equipment at Customer’s expense.\n\n12. Evaluation Follow-up Visits: With advance notice, we reserve the right to make or to have its contractor(s) make follow-up visits to Customer facilities during the 36 months following completion of the project to provide us with an opportunity to review the operation of the ECMs for Program evaluation purposes. Customer agrees to cooperate with this effort.\n\n13. Contractor Selection: Customer may select any contractor to perform the work contemplated by the application, even after the application is pre-approved by us. However, we reserve the right, in its sole discretion, to prohibit specific contractors from Program participation.\n\n14. No Warranties: Dominion Energy South Carolina, Inc. does not endorse, guarantee, or warrant any particular manufacturer or product and we provide no warranties, express or implied, for any products or services, and herein specifically disclaims any such guarantees or warranties. We are not liable or responsible for any act or omission of any contractor hired by Customer. Customer’s reliance on warranties is limited to any warranties that may arise from, or be provided by contractors, vendors, etc. Customer acknowledges that neither Dominion Energy South Carolina, Inc. nor any of its consultants are responsible for ensuring that the design, engineering, and construction of the facility or installation of the ECMs are proper or comply with any particular laws (including patent laws), codes, regulations, or industry standards. We make no representations of any kind regarding the results to be achieved by the ECMs or the adequacy or safety of such measures.\n\n15. Assumption of Risk and Limitation of Liability: Customer assumes and acknowledges all risks arising from its participation in the Program including but not limited to exposure to the novel coronavirus (“COVID-19”) and releases and discharges Dominion Energy, Inc., Dominion Energy South Carolina, its Implementer, Evaluator, and their respective officers, directors, employees and agents from any liability related thereto. Our sole obligation is limited to paying the properly qualified rebates specified herein. Neither Dominion Energy South Carolina, Inc., any of its subsidiaries, nor its Implementer or Evaluator shall be  liable to Customer or any other party for any special, indirect, consequential, or incidental damages,  regardless of the theory of recovery, caused by or arising from any activities associated with this Program.\n\n16. Obligations between the Parties: Customer acknowledges that any contractor selected by Customer is not an agent, contractor, or subcontractor of Dominion Energy South Carolina and is an independent contractor engaged by Customer, and that we do not manage or control the contractor’s performance. We shall have no obligation to maintain, remove, or perform any work whatsoever on the ECMs installed. We shall have no liability for a contractor’s failure to perform, for failure of the energy savings measures to function, for any damage to Customer’s premises caused by the contractor, or for any and all damages to property or injuries to persons caused by or associated with the energy savings measures. \n\n17. Miscellaneous: These T&Cs and this application, of which these T&Cs are an integral part, constitute the entire agreement between the parties and supersede all other communications, representations, and understandings.",null,{"$f":"B6","v":0}]
[]
[]
[]
[]
[null,"Version # 15.1"]

{"sheet":"Equipment Input","index":4,"n_rows":42,"n_cols":23,"rows_kept":42,"cut":false,"hidden":false,"merged":[[19,1,20,1],[19,2,20,2],[19,3,20,3],[19,4,20,4],[19,5,20,5],[1,1,1,14],[2,1,2,14],[3,1,3,14],[4,1,4,14],[5,1,5,14],[18,16,18,22],[19,8,19,9],[18,2,18,14],[19,6,20,6],[19,7,20,7],[19,10,20,10],[19,13,20,13],[19,14,20,14],[19,15,20,15],[19,11,20,11],[19,12,20,12],[15,1,16,1],[10,3,10,4],[11,3,11,4],[12,3,12,4],[8,17,8,19],[8,8,8,10],[13,3,13,4],[8,1,8,7],[15,11,17,15]]}
[]
[]
[]
[null," Food Service and High-Efficiency Equipment"]
[null,{"$f":"\"Version # \"&'Version Tracking'!C4","v":"Version # 15.1"}]
[null," "]
[null,"Copyright © 2025 ICF Resources, LLC, All Rights Reserved. Do not copy, distribute or quote without ICF’s written permission."]
[]
[null,"Required General Project Information",null,null,null,null,null,null,"Administrative Use Only",null,null,null,null,null,null,null,null,"Summary Table"]
[null,null,null,null,null,null,null,null,null,null,null,null,null,null,null,null,null,"Total kWh ","Total Summer/Winter Coincident Peak (kW)","Total Incentive"]
[null,null,"Project Name",null,null,"Prepared By",null,null,"Project ID",null,null,null,null,null,null,null,null,{"$f":"SUM(Q23:Q42,R23:R42,S23:S42)","v":0},{"$f":"SUM(T23:T42,U23:U42,V23:V42)","v":0},{"$f":"SUM(W23:W42)","v":0}]
[null,null,"Project Address",null,null,"Contact Person",null,null,"Data Input By"]
[null,null,"City",null,null,"Phone",null,null,"Input Date"]
[null,null,"ZIP",null,null,"Email"]
[]
[null,"Input Cells",null,null,null,null,null,null,null,null,null,"Leased Equipment is elligible for the EnergyWise for Your Business Incentives if the Lease Agreement is 24 months or greater"]
[null,null,"Data input allowed in blue shaded cells only.",null,null,null,null,"*If print button malfunctions, "]
[null,null,null,null,null,null,null,"select printer settings manually from print menu"]
[null,null,"Food Service & High-Efficiency Equipment",null,null,null,null,null,null,null,null,null,null,null,null,"Incentives","Savings"]
[null,"Line Item","Building Type","Measure Type","Type/Size","Make","Model","For Holding Cabinets Enter Vol (ft3)","For Refrigerated Case Lighting Upgrades Enter the Proposed and Existing Bulb Wattage",null,"For Refrigerated Case Lighting Controls Measure Enter the Lighting Wattage controlled ","Purchased or Leased","If Leased ONLY                                                      ----------------------- Lease Length in Months","Quantity","Units of Quantity","Incentive Requested","kWh Saved","kWh Saved for Refrigerated Case Lighting Measure","kWh Saved for Refrigerated Case Lighting Control Measure","Summer Coincident Peak kW Saved","Summer Coincident Peak kW Saved For Refrigerated Case Lighting Measure","Summer Coincident Peak kW Saved For Refrigerated Case Lighting Control Measure","Incentive"]
[null,null,null,null,null,null,null,null,"Proposed","Existing"]
[null,"Ex.","Office","ECM (Coolers/Freezers)","Walk-in Cooler replacing Shaded Poll",null,null,null,null,null,null,null,null,1,{"$f":"IF(D22=\"\",\"\",VLOOKUP(D22,Lookups!$D$3:$E$30,2,0))","v":"Units"},{"$f":"IF(OR(D22=\"\",E22=\"\"),\"\",VLOOKUP($D22&\"_\"&$E22,Lookups!$J$3:$M$83,2,0)*$N22)","v":100},{"$f":"IF(OR(D22=\"\",E22=\"\"),\"\",VLOOKUP($D22&\"_\"&$E22,Lookups!$J$3:$M$83,3,0)*$N22)","v":1016},null,null,{"$f":"IF(OR(D22=\"\",E22=\"\"),\"\",VLOOKUP($D22&\"_\"&$E22,Lookups!$J$3:$M$83,4,0)*$N22)","v":0.12},null,null,{"$f":"$P22","v":100}]
[null,1,null,null,null,null,null,null,null,null,null,null,null,null,{"$f":"IF(D23=\"\",\"\",VLOOKUP(D23,Lookups!$D$3:$E$31,2,0))","v":""},{"$f":"IF(AND(L23=\"Leased\", M23<24), \"Lease Length Does Not Qualify\", IF(OR(D23=\"\", E23=\"\"), \"\", VLOOKUP($D23&\"_\"&$E23, Lookups!$J$3:$M$83, 2, FALSE)*$N23))","v":""},{"$f":"IF(OR(D23=\"\",E23=\"\", D23=\"LED Refrig Case Lighting\",D23=\"LED Refrig Case Lighting Controls\"),\"\",IF(AND(D23=\"Hot Holding Cabinets\",E23=\"Half Size\"),Lookups!L7*N23,IF(AND(D23=\"Hot Holding Cabinets\",E23=\"3/4 Size\"),Lookups!L17*N23,IF(AND(D23=\"Hot Holding Cabinets\",E23=\"Full Size\"),Lookups!L27*N23,VLOOKUP($D23&\"_\"&$E23,Lookups!$J$3:$M$83,3,0)*$N23))))","v":""},{"$f":"IF(AND(D23=\"LED Refrig Case Lighting\",E23=\"Coolers\"),(((J23-I23)*8766*1.41)/1000)*N23,IF(AND(D23=\"LED Refrig Case Lighting\",E23=\"Freezers\"),(((J23-I23)*8766*1.52)/1000)*N23,\"\"))","v":""},{"$f":"IF(AND(D23=\"LED Refrig Case Lighting Controls\",E23=\"Coolers\"),((K23*8766*1.25*0.43)/1000)*N23,IF(AND(D23=\"LED Refrig Case Lighting Controls\",E23=\"Freezers\"),((K23*8766*1.3*0.43)/1000)*N23,\"\"))","v":""},{"$f":"IF(OR(D23=\"\",E23=\"\", D23=\"LED Refrig Case Lighting\",D23=\"LED Refrig Case Lighting Controls\"),\"\",IF(AND(D23=\"Hot Holding Cabinets\",E23=\"Half Size\"),Lookups!M7*N23,IF(AND(D23=\"Hot Holding Cabinets\",E23=\"3/4 Size\"),Lookups!M17*N23,IF(AND(D23=\"Hot Holding Cabinets\",E23=\"Full Size\"),Lookups!M27*N23,VLOOKUP($D23&\"_\"&$E23,Lookups!$J$3:$M$83,4,0)*$N23))))","v":""},{"$f":"IF(AND(D23=\"LED Refrig Case Lighting\",E23=\"Coolers\"),(((J23-I23)*0.95*1.4)/1000)*N23,IF(AND(D23=\"LED Refrig Case Lighting\",E23=\"Freezers\"),(((J23-I23)*0.95*1.51)/1000)*N23,\"\"))","v":""},{"$f":"IF(AND(D23=\"LED Refrig Case Lighting Controls\",E23=\"Coolers\"),((K23*0.95*1.25*0.43)/1000)*N23,IF(AND(D23=\"LED Refrig Case Lighting Controls\",E23=\"Freezers\"),((K23*0.95*1.3*0.43)/1000)*N23,\"\"))","v":""},{"$f":"P23","v":""}]
[null,2,null,null,null,null,null,null,null,null,null,null,null,null,{"$f":"IF(D24=\"\",\"\",VLOOKUP(D24,Lookups!$D$3:$E$31,2,0))","v":""},{"$f":"IF(AND(L24=\"Leased\", M24<24), \"Lease Length Does Not Qualify\", IF(OR(D24=\"\", E24=\"\"), \"\", VLOOKUP($D24&\"_\"&$E24, Lookups!$J$3:$M$83, 2, FALSE)*$N24))","v":""},{"$f":"IF(OR(D24=\"\",E24=\"\", D24=\"LED Refrig Case Lighting\",D24=\"LED Refrig Case Lighting Controls\"),\"\",IF(AND(D24=\"Hot Holding Cabinets\",E24=\"Half Size\"),Lookups!L8*N24,IF(AND(D24=\"Hot Holding Cabinets\",E24=\"3/4 Size\"),Lookups!L18*N24,IF(AND(D24=\"Hot Holding Cabinets\",E24=\"Full Size\"),Lookups!L28*N24,VLOOKUP($D24&\"_\"&$E24,Lookups!$J$3:$M$83,3,0)*$N24))))","v":""},{"$f":"IF(AND(D24=\"LED Refrig Case Lighting\",E24=\"Coolers\"),(((J24-I24)*8766*1.41)/1000)*N24,IF(AND(D24=\"LED Refrig Case Lighting\",E24=\"Freezers\"),(((J24-I24)*8766*1.52)/1000)*N24,\"\"))","v":""},{"$f":"IF(AND(D24=\"LED Refrig Case Lighting Controls\",E24=\"Coolers\"),((K24*8766*1.25*0.43)/1000)*N24,IF(AND(D24=\"LED Refrig Case Lighting Controls\",E24=\"Freezers\"),((K24*8766*1.3*0.43)/1000)*N24,\"\"))","v":""},{"$f":"IF(OR(D24=\"\",E24=\"\", D24=\"LED Refrig Case Lighting\",D24=\"LED Refrig Case Lighting Controls\"),\"\",IF(AND(D24=\"Hot Holding Cabinets\",E24=\"Half Size\"),Lookups!M8*N24,IF(AND(D24=\"Hot Holding Cabinets\",E24=\"3/4 Size\"),Lookups!M18*N24,IF(AND(D24=\"Hot Holding Cabinets\",E24=\"Full Size\"),Lookups!M28*N24,VLOOKUP($D24&\"_\"&$E24,Lookups!$J$3:$M$83,4,0)*$N24))))","v":""},{"$f":"IF(AND(D24=\"LED Refrig Case Lighting\",E24=\"Coolers\"),(((J24-I24)*0.95*1.4)/1000)*N24,IF(AND(D24=\"LED Refrig Case Lighting\",E24=\"Freezers\"),(((J24-I24)*0.95*1.51)/1000)*N24,\"\"))","v":""},{"$f":"IF(AND(D24=\"LED Refrig Case Lighting Controls\",E24=\"Coolers\"),((K24*0.95*1.25*0.43)/1000)*N24,IF(AND(D24=\"LED Refrig Case Lighting Controls\",E24=\"Freezers\"),((K24*0.95*1.3*0.43)/1000)*N24,\"\"))","v":""},{"$f":"P24","v":""}]
[null,3,null,null,null,null,null,null,null,null,null,null,null,null,{"$f":"IF(D25=\"\",\"\",VLOOKUP(D25,Lookups!$D$3:$E$31,2,0))","v":""},{"$f":"IF(AND(L25=\"Leased\", M25<24), \"Lease Length Does Not Qualify\", IF(OR(D25=\"\", E25=\"\"), \"\", VLOOKUP($D25&\"_\"&$E25, Lookups!$J$3:$M$83, 2, FALSE)*$N25))","v":""},{"$f":"IF(OR(D25=\"\",E25=\"\", D25=\"LED Refrig Case Lighting\",D25=\"LED Refrig Case Lighting Controls\"),\"\",IF(AND(D25=\"Hot Holding Cabinets\",E25=\"Half Size\"),Lookups!L9*N25,IF(AND(D25=\"Hot Holding Cabinets\",E25=\"3/4 Size\"),Lookups!L19*N25,IF(AND(D25=\"Hot Holding Cabinets\",E25=\"Full Size\"),Lookups!L29*N25,VLOOKUP($D25&\"_\"&$E25,Lookups!$J$3:$M$83,3,0)*$N25))))","v":""},"","",{"$f":"IF(OR(D25=\"\",E25=\"\", D25=\"LED Refrig Case Lighting\",D25=\"LED Refrig Case Lighting Controls\"),\"\",IF(AND(D25=\"Hot Holding Cabinets\",E25=\"Half Size\"),Lookups!M9*N25,IF(AND(D25=\"Hot Holding Cabinets\",E25=\"3/4 Size\"),Lookups!M19*N25,IF(AND(D25=\"Hot Holding Cabinets\",E25=\"Full Size\"),Lookups!M29*N25,VLOOKUP($D25&\"_\"&$E25,Lookups!$J$3:$M$83,4,0)*$N25))))","v":""},"","",""]
[null,4,null,null,null,null,null,null,null,null,null,null,null,null,{"$f":"IF(D26=\"\",\"\",VLOOKUP(D26,Lookups!$D$3:$E$31,2,0))","v":""},{"$f":"IF(AND(L26=\"Leased\", M26<24), \"Lease Length Does Not Qualify\", IF(OR(D26=\"\", E26=\"\"), \"\", VLOOKUP($D26&\"_\"&$E26, Lookups!$J$3:$M$83, 2, FALSE)*$N26))","v":""},{"$f":"IF(OR(D26=\"\",E26=\"\", D26=\"LED Refrig Case Lighting\",D26=\"LED Refrig Case Lighting Controls\"),\"\",IF(AND(D26=\"Hot Holding Cabinets\",E26=\"Half Size\"),Lookups!L10*N26,IF(AND(D26=\"Hot Holding Cabinets\",E26=\"3/4 Size\"),Lookups!L20*N26,IF(AND(D26=\"Hot Holding Cabinets\",E26=\"Full Size\"),Lookups!L30*N26,VLOOKUP($D26&\"_\"&$E26,Lookups!$J$3:$M$83,3,0)*$N26))))","v":""},"","",{"$f":"IF(OR(D26=\"\",E26=\"\", D26=\"LED Refrig Case Lighting\",D26=\"LED Refrig Case Lighting Controls\"),\"\",IF(AND(D26=\"Hot Holding Cabinets\",E26=\"Half Size\"),Lookups!M10*N26,IF(AND(D26=\"Hot Holding Cabinets\",E26=\"3/4 Size\"),Lookups!M20*N26,IF(AND(D26=\"Hot Holding Cabinets\",E26=\"Full Size\"),Lookups!M30*N26,VLOOKUP($D26&\"_\"&$E26,Lookups!$J$3:$M$83,4,0)*$N26))))","v":""},"","",""]
[null,5,null,null,null,null,null,null,null,null,null,null,null,null,{"$f":"IF(D27=\"\",\"\",VLOOKUP(D27,Lookups!$D$3:$E$31,2,0))","v":""},{"$f":"IF(AND(L27=\"Leased\", M27<24), \"Lease Length Does Not Qualify\", IF(OR(D27=\"\", E27=\"\"), \"\", VLOOKUP($D27&\"_\"&$E27, Lookups!$J$3:$M$83, 2, FALSE)*$N27))","v":""},{"$f":"IF(OR(D27=\"\",E27=\"\", D27=\"LED Refrig Case Lighting\",D27=\"LED Refrig Case Lighting Controls\"),\"\",IF(AND(D27=\"Hot Holding Cabinets\",E27=\"Half Size\"),Lookups!L11*N27,IF(AND(D27=\"Hot Holding Cabinets\",E27=\"3/4 Size\"),Lookups!L21*N27,IF(AND(D27=\"Hot Holding Cabinets\",E27=\"Full Size\"),Lookups!L31*N27,VLOOKUP($D27&\"_\"&$E27,Lookups!$J$3:$M$83,3,0)*$N27))))","v":""},"","",{"$f":"IF(OR(D27=\"\",E27=\"\", D27=\"LED Refrig Case Lighting\",D27=\"LED Refrig Case Lighting Controls\"),\"\",IF(AND(D27=\"Hot Holding Cabinets\",E27=\"Half Size\"),Lookups!M11*N27,IF(AND(D27=\"Hot Holding Cabinets\",E27=\"3/4 Size\"),Lookups!M21*N27,IF(AND(D27=\"Hot Holding Cabinets\",E27=\"Full Size\"),Lookups!M31*N27,VLOOKUP($D27&\"_\"&$E27,Lookups!$J$3:$M$83,4,0)*$N27))))","v":""},"","",""]
[null,6,null,null,null,null,null,null,null,null,null,null,null,null,null,{"$f":"IF(AND(L28=\"Leased\", M28<24), \"Lease Length Does Not Qualify\", IF(OR(D28=\"\", E28=\"\"), \"\", VLOOKUP($D28&\"_\"&$E28, Lookups!$J$3:$M$83, 2, FALSE)*$N28))","v":""},{"$f":"IF(OR(D28=\"\",E28=\"\", D28=\"LED Refrig Case Lighting\",D28=\"LED Refrig Case Lighting Controls\"),\"\",IF(AND(D28=\"Hot Holding Cabinets\",E28=\"Half Size\"),Lookups!L12*N28,IF(AND(D28=\"Hot Holding Cabinets\",E28=\"3/4 Size\"),Lookups!L22*N28,IF(AND(D28=\"Hot Holding Cabinets\",E28=\"Full Size\"),Lookups!L32*N28,VLOOKUP($D28&\"_\"&$E28,Lookups!$J$3:$M$83,3,0)*$N28))))","v":""},"","",{"$f":"IF(OR(D28=\"\",E28=\"\", D28=\"LED Refrig Case Lighting\",D28=\"LED Refrig Case Lighting Controls\"),\"\",IF(AND(D28=\"Hot Holding Cabinets\",E28=\"Half Size\"),Lookups!M12*N28,IF(AND(D28=\"Hot Holding Cabinets\",E28=\"3/4 Size\"),Lookups!M22*N28,IF(AND(D28=\"Hot Holding Cabinets\",E28=\"Full Size\"),Lookups!M32*N28,VLOOKUP($D28&\"_\"&$E28,Lookups!$J$3:$M$83,4,0)*$N28))))","v":""},"","",""]
[null,7,null,null,null,null,null,null,null,null,null,null,null,null,null,{"$f":"IF(AND(L29=\"Leased\", M29<24), \"Lease Length Does Not Qualify\", IF(OR(D29=\"\", E29=\"\"), \"\", VLOOKUP($D29&\"_\"&$E29, Lookups!$J$3:$M$83, 2, FALSE)*$N29))","v":""},{"$f":"IF(OR(D29=\"\",E29=\"\", D29=\"LED Refrig Case Lighting\",D29=\"LED Refrig Case Lighting Controls\"),\"\",IF(AND(D29=\"Hot Holding Cabinets\",E29=\"Half Size\"),Lookups!L13*N29,IF(AND(D29=\"Hot Holding Cabinets\",E29=\"3/4 Size\"),Lookups!L23*N29,IF(AND(D29=\"Hot Holding Cabinets\",E29=\"Full Size\"),Lookups!L33*N29,VLOOKUP($D29&\"_\"&$E29,Lookups!$J$3:$M$83,3,0)*$N29))))","v":""},"","",{"$f":"IF(OR(D29=\"\",E29=\"\", D29=\"LED Refrig Case Lighting\",D29=\"LED Refrig Case Lighting Controls\"),\"\",IF(AND(D29=\"Hot Holding Cabinets\",E29=\"Half Size\"),Lookups!M13*N29,IF(AND(D29=\"Hot Holding Cabinets\",E29=\"3/4 Size\"),Lookups!M23*N29,IF(AND(D29=\"Hot Holding Cabinets\",E29=\"Full Size\"),Lookups!M33*N29,VLOOKUP($D29&\"_\"&$E29,Lookups!$J$3:$M$83,4,0)*$N29))))","v":""},"","",""]
[null,8,null,null,null,null,null,null,null,null,null,null,null,null,null,{"$f":"IF(AND(L30=\"Leased\", M30<24), \"Lease Length Does Not Qualify\", IF(OR(D30=\"\", E30=\"\"), \"\", VLOOKUP($D30&\"_\"&$E30, Lookups!$J$3:$M$83, 2, FALSE)*$N30))","v":""},{"$f":"IF(OR(D30=\"\",E30=\"\", D30=\"LED Refrig Case Lighting\",D30=\"LED Refrig Case Lighting Controls\"),\"\",IF(AND(D30=\"Hot Holding Cabinets\",E30=\"Half Size\"),Lookups!L14*N30,IF(AND(D30=\"Hot Holding Cabinets\",E30=\"3/4 Size\"),Lookups!L24*N30,IF(AND(D30=\"Hot Holding Cabinets\",E30=\"Full Size\"),Lookups!L34*N30,VLOOKUP($D30&\"_\"&$E30,Lookups!$J$3:$M$83,3,0)*$N30))))","v":""},"","",{"$f":"IF(OR(D30=\"\",E30=\"\", D30=\"LED Refrig Case Lighting\",D30=\"LED Refrig Case Lighting Controls\"),\"\",IF(AND(D30=\"Hot Holding Cabinets\",E30=\"Half Size\"),Lookups!M14*N30,IF(AND(D30=\"Hot Holding Cabinets\",E30=\"3/4 Size\"),Lookups!M24*N30,IF(AND(D30=\"Hot Holding Cabinets\",E30=\"Full Size\"),Lookups!M34*N30,VLOOKUP($D30&\"_\"&$E30,Lookups!$J$3:$M$83,4,0)*$N30))))","v":""},"","",""]
[null,9,null,null,null,null,null,null,null,null,null,null,null,null,null,{"$f":"IF(AND(L31=\"Leased\", M31<24), \"Lease Length Does Not Qualify\", IF(OR(D31=\"\", E31=\"\"), \"\", VLOOKUP($D31&\"_\"&$E31, Lookups!$J$3:$M$83, 2, FALSE)*$N31))","v":""},{"$f":"IF(OR(D31=\"\",E31=\"\", D31=\"LED Refrig Case Lighting\",D31=\"LED Refrig Case Lighting Controls\"),\"\",IF(AND(D31=\"Hot Holding Cabinets\",E31=\"Half Size\"),Lookups!L15*N31,IF(AND(D31=\"Hot Holding Cabinets\",E31=\"3/4 Size\"),Lookups!L25*N31,IF(AND(D31=\"Hot Holding Cabinets\",E31=\"Full Size\"),Lookups!L35*N31,VLOOKUP($D31&\"_\"&$E31,Lookups!$J$3:$M$83,3,0)*$N31))))","v":""},"","",{"$f":"IF(OR(D31=\"\",E31=\"\", D31=\"LED Refrig Case Lighting\",D31=\"LED Refrig Case Lighting Controls\"),\"\",IF(AND(D31=\"Hot Holding Cabinets\",E31=\"Half Size\"),Lookups!M15*N31,IF(AND(D31=\"Hot Holding Cabinets\",E31=\"3/4 Size\"),Lookups!M25*N31,IF(AND(D31=\"Hot Holding Cabinets\",E31=\"Full Size\"),Lookups!M35*N31,VLOOKUP($D31&\"_\"&$E31,Lookups!$J$3:$M$83,4,0)*$N31))))","v":""},"","",""]
[null,10,null,null,null,null,null,null,null,null,null,null,null,null,null,{"$f":"IF(AND(L32=\"Leased\", M32<24), \"Lease Length Does Not Qualify\", IF(OR(D32=\"\", E32=\"\"), \"\", VLOOKUP($D32&\"_\"&$E32, Lookups!$J$3:$M$83, 2, FALSE)*$N32))","v":""},{"$f":"IF(OR(D32=\"\",E32=\"\", D32=\"LED Refrig Case Lighting\",D32=\"LED Refrig Case Lighting Controls\"),\"\",IF(AND(D32=\"Hot Holding Cabinets\",E32=\"Half Size\"),Lookups!L16*N32,IF(AND(D32=\"Hot Holding Cabinets\",E32=\"3/4 Size\"),Lookups!L26*N32,IF(AND(D32=\"Hot Holding Cabinets\",E32=\"Full Size\"),Lookups!L36*N32,VLOOKUP($D32&\"_\"&$E32,Lookups!$J$3:$M$83,3,0)*$N32))))","v":""},"","",{"$f":"IF(OR(D32=\"\",E32=\"\", D32=\"LED Refrig Case Lighting\",D32=\"LED Refrig Case Lighting Controls\"),\"\",IF(AND(D32=\"Hot Holding Cabinets\",E32=\"Half Size\"),Lookups!M16*N32,IF(AND(D32=\"Hot Holding Cabinets\",E32=\"3/4 Size\"),Lookups!M26*N32,IF(AND(D32=\"Hot Holding Cabinets\",E32=\"Full Size\"),Lookups!M36*N32,VLOOKUP($D32&\"_\"&$E32,Lookups!$J$3:$M$83,4,0)*$N32))))","v":""},"","",""]
[null,11,null,null,null,null,null,null,null,null,null,null,null,null,null,{"$f":"IF(AND(L33=\"Leased\", M33<24), \"Lease Length Does Not Qualify\", IF(OR(D33=\"\", E33=\"\"), \"\", VLOOKUP($D33&\"_\"&$E33, Lookups!$J$3:$M$83, 2, FALSE)*$N33))","v":""},{"$f":"IF(OR(D33=\"\",E33=\"\", D33=\"LED Refrig Case Lighting\",D33=\"LED Refrig Case Lighting Controls\"),\"\",IF(AND(D33=\"Hot Holding Cabinets\",E33=\"Half Size\"),Lookups!L17*N33,IF(AND(D33=\"Hot Holding Cabinets\",E33=\"3/4 Size\"),Lookups!L27*N33,IF(AND(D33=\"Hot Holding Cabinets\",E33=\"Full Size\"),Lookups!L37*N33,VLOOKUP($D33&\"_\"&$E33,Lookups!$J$3:$M$83,3,0)*$N33))))","v":""},"","",{"$f":"IF(OR(D33=\"\",E33=\"\", D33=\"LED Refrig Case Lighting\",D33=\"LED Refrig Case Lighting Controls\"),\"\",IF(AND(D33=\"Hot Holding Cabinets\",E33=\"Half Size\"),Lookups!M17*N33,IF(AND(D33=\"Hot Holding Cabinets\",E33=\"3/4 Size\"),Lookups!M27*N33,IF(AND(D33=\"Hot Holding Cabinets\",E33=\"Full Size\"),Lookups!M37*N33,VLOOKUP($D33&\"_\"&$E33,Lookups!$J$3:$M$83,4,0)*$N33))))","v":""},"","",""]
[null,12,null,null,null,null,null,null,null,null,null,null,null,null,null,{"$f":"IF(AND(L34=\"Leased\", M34<24), \"Lease Length Does Not Qualify\", IF(OR(D34=\"\", E34=\"\"), \"\", VLOOKUP($D34&\"_\"&$E34, Lookups!$J$3:$M$83, 2, FALSE)*$N34))","v":""},{"$f":"IF(OR(D34=\"\",E34=\"\", D34=\"LED Refrig Case Lighting\",D34=\"LED Refrig Case Lighting Controls\"),\"\",IF(AND(D34=\"Hot Holding Cabinets\",E34=\"Half Size\"),Lookups!L18*N34,IF(AND(D34=\"Hot Holding Cabinets\",E34=\"3/4 Size\"),Lookups!L28*N34,IF(AND(D34=\"Hot Holding Cabinets\",E34=\"Full Size\"),Lookups!L38*N34,VLOOKUP($D34&\"_\"&$E34,Lookups!$J$3:$M$83,3,0)*$N34))))","v":""},"","",{"$f":"IF(OR(D34=\"\",E34=\"\", D34=\"LED Refrig Case Lighting\",D34=\"LED Refrig Case Lighting Controls\"),\"\",IF(AND(D34=\"Hot Holding Cabinets\",E34=\"Half Size\"),Lookups!M18*N34,IF(AND(D34=\"Hot Holding Cabinets\",E34=\"3/4 Size\"),Lookups!M28*N34,IF(AND(D34=\"Hot Holding Cabinets\",E34=\"Full Size\"),Lookups!M38*N34,VLOOKUP($D34&\"_\"&$E34,Lookups!$J$3:$M$83,4,0)*$N34))))","v":""},"","",""]
[null,13,null,null,null,null,null,null,null,null,null,null,null,null,{"$f":"IF(D35=\"\",\"\",VLOOKUP(D35,Lookups!$D$3:$E$31,2,0))","v":""},{"$f":"IF(AND(L35=\"Leased\", M35<24), \"Lease Length Does Not Qualify\", IF(OR(D35=\"\", E35=\"\"), \"\", VLOOKUP($D35&\"_\"&$E35, Lookups!$J$3:$M$83, 2, FALSE)*$N35))","v":""},{"$f":"IF(OR(D35=\"\",E35=\"\", D35=\"LED Refrig Case Lighting\",D35=\"LED Refrig Case Lighting Controls\"),\"\",IF(AND(D35=\"Hot Holding Cabinets\",E35=\"Half Size\"),Lookups!L19*N35,IF(AND(D35=\"Hot Holding Cabinets\",E35=\"3/4 Size\"),Lookups!L29*N35,IF(AND(D35=\"Hot Holding Cabinets\",E35=\"Full Size\"),Lookups!L39*N35,VLOOKUP($D35&\"_\"&$E35,Lookups!$J$3:$M$83,3,0)*$N35))))","v":""},"","",{"$f":"IF(OR(D35=\"\",E35=\"\", D35=\"LED Refrig Case Lighting\",D35=\"LED Refrig Case Lighting Controls\"),\"\",IF(AND(D35=\"Hot Holding Cabinets\",E35=\"Half Size\"),Lookups!M19*N35,IF(AND(D35=\"Hot Holding Cabinets\",E35=\"3/4 Size\"),Lookups!M29*N35,IF(AND(D35=\"Hot Holding Cabinets\",E35=\"Full Size\"),Lookups!M39*N35,VLOOKUP($D35&\"_\"&$E35,Lookups!$J$3:$M$83,4,0)*$N35))))","v":""},"","",""]
[null,14,null,null,null,null,null,null,null,null,null,null,null,null,null,{"$f":"IF(AND(L36=\"Leased\", M36<24), \"Lease Length Does Not Qualify\", IF(OR(D36=\"\", E36=\"\"), \"\", VLOOKUP($D36&\"_\"&$E36, Lookups!$J$3:$M$83, 2, FALSE)*$N36))","v":""},{"$f":"IF(OR(D36=\"\",E36=\"\", D36=\"LED Refrig Case Lighting\",D36=\"LED Refrig Case Lighting Controls\"),\"\",IF(AND(D36=\"Hot Holding Cabinets\",E36=\"Half Size\"),Lookups!L20*N36,IF(AND(D36=\"Hot Holding Cabinets\",E36=\"3/4 Size\"),Lookups!L30*N36,IF(AND(D36=\"Hot Holding Cabinets\",E36=\"Full Size\"),Lookups!L40*N36,VLOOKUP($D36&\"_\"&$E36,Lookups!$J$3:$M$83,3,0)*$N36))))","v":""},"","",{"$f":"IF(OR(D36=\"\",E36=\"\", D36=\"LED Refrig Case Lighting\",D36=\"LED Refrig Case Lighting Controls\"),\"\",IF(AND(D36=\"Hot Holding Cabinets\",E36=\"Half Size\"),Lookups!M20*N36,IF(AND(D36=\"Hot Holding Cabinets\",E36=\"3/4 Size\"),Lookups!M30*N36,IF(AND(D36=\"Hot Holding Cabinets\",E36=\"Full Size\"),Lookups!M40*N36,VLOOKUP($D36&\"_\"&$E36,Lookups!$J$3:$M$83,4,0)*$N36))))","v":""},"","",""]
[null,15,null,null,null,null,null,null,null,null,null,null,null,null,null,{"$f":"IF(AND(L37=\"Leased\", M37<24), \"Lease Length Does Not Qualify\", IF(OR(D37=\"\", E37=\"\"), \"\", VLOOKUP($D37&\"_\"&$E37, Lookups!$J$3:$M$83, 2, FALSE)*$N37))","v":""},{"$f":"IF(OR(D37=\"\",E37=\"\", D37=\"LED Refrig Case Lighting\",D37=\"LED Refrig Case Lighting Controls\"),\"\",IF(AND(D37=\"Hot Holding Cabinets\",E37=\"Half Size\"),Lookups!L21*N37,IF(AND(D37=\"Hot Holding Cabinets\",E37=\"3/4 Size\"),Lookups!L31*N37,IF(AND(D37=\"Hot Holding Cabinets\",E37=\"Full Size\"),Lookups!L41*N37,VLOOKUP($D37&\"_\"&$E37,Lookups!$J$3:$M$83,3,0)*$N37))))","v":""},"","",{"$f":"IF(OR(D37=\"\",E37=\"\", D37=\"LED Refrig Case Lighting\",D37=\"LED Refrig Case Lighting Controls\"),\"\",IF(AND(D37=\"Hot Holding Cabinets\",E37=\"Half Size\"),Lookups!M21*N37,IF(AND(D37=\"Hot Holding Cabinets\",E37=\"3/4 Size\"),Lookups!M31*N37,IF(AND(D37=\"Hot Holding Cabinets\",E37=\"Full Size\"),Lookups!M41*N37,VLOOKUP($D37&\"_\"&$E37,Lookups!$J$3:$M$83,4,0)*$N37))))","v":""},"","",""]
[null,16,null,null,null,null,null,null,null,null,null,null,null,null,null,{"$f":"IF(AND(L38=\"Leased\", M38<24), \"Lease Length Does Not Qualify\", IF(OR(D38=\"\", E38=\"\"), \"\", VLOOKUP($D38&\"_\"&$E38, Lookups!$J$3:$M$83, 2, FALSE)*$N38))","v":""},{"$f":"IF(OR(D38=\"\",E38=\"\", D38=\"LED Refrig Case Lighting\",D38=\"LED Refrig Case Lighting Controls\"),\"\",IF(AND(D38=\"Hot Holding Cabinets\",E38=\"Half Size\"),Lookups!L22*N38,IF(AND(D38=\"Hot Holding Cabinets\",E38=\"3/4 Size\"),Lookups!L32*N38,IF(AND(D38=\"Hot Holding Cabinets\",E38=\"Full Size\"),Lookups!L42*N38,VLOOKUP($D38&\"_\"&$E38,Lookups!$J$3:$M$83,3,0)*$N38))))","v":""},"","",{"$f":"IF(OR(D38=\"\",E38=\"\", D38=\"LED Refrig Case Lighting\",D38=\"LED Refrig Case Lighting Controls\"),\"\",IF(AND(D38=\"Hot Holding Cabinets\",E38=\"Half Size\"),Lookups!M22*N38,IF(AND(D38=\"Hot Holding Cabinets\",E38=\"3/4 Size\"),Lookups!M32*N38,IF(AND(D38=\"Hot Holding Cabinets\",E38=\"Full Size\"),Lookups!M42*N38,VLOOKUP($D38&\"_\"&$E38,Lookups!$J$3:$M$83,4,0)*$N38))))","v":""},"","",""]
[null,17,null,null,null,null,null,null,null,null,null,null,null,null,{"$f":"IF(D39=\"\",\"\",VLOOKUP(D39,Lookups!$D$3:$E$31,2,0))","v":""},{"$f":"IF(AND(L39=\"Leased\", M39<24), \"Lease Length Does Not Qualify\", IF(OR(D39=\"\", E39=\"\"), \"\", VLOOKUP($D39&\"_\"&$E39, Lookups!$J$3:$M$83, 2, FALSE)*$N39))","v":""},{"$f":"IF(OR(D39=\"\",E39=\"\", D39=\"LED Refrig Case Lighting\",D39=\"LED Refrig Case Lighting Controls\"),\"\",IF(AND(D39=\"Hot Holding Cabinets\",E39=\"Half Size\"),Lookups!L23*N39,IF(AND(D39=\"Hot Holding Cabinets\",E39=\"3/4 Size\"),Lookups!L33*N39,IF(AND(D39=\"Hot Holding Cabinets\",E39=\"Full Size\"),Lookups!L43*N39,VLOOKUP($D39&\"_\"&$E39,Lookups!$J$3:$M$83,3,0)*$N39))))","v":""},"","",{"$f":"IF(OR(D39=\"\",E39=\"\", D39=\"LED Refrig Case Lighting\",D39=\"LED Refrig Case Lighting Controls\"),\"\",IF(AND(D39=\"Hot Holding Cabinets\",E39=\"Half Size\"),Lookups!M23*N39,IF(AND(D39=\"Hot Holding Cabinets\",E39=\"3/4 Size\"),Lookups!M33*N39,IF(AND(D39=\"Hot Holding Cabinets\",E39=\"Full Size\"),Lookups!M43*N39,VLOOKUP($D39&\"_\"&$E39,Lookups!$J$3:$M$83,4,0)*$N39))))","v":""},"","",""]
[null,18,null,null,null,null,null,null,null,null,null,null,null,null,{"$f":"IF(D40=\"\",\"\",VLOOKUP(D40,Lookups!$D$3:$E$31,2,0))","v":""},{"$f":"IF(AND(L40=\"Leased\", M40<24), \"Lease Length Does Not Qualify\", IF(OR(D40=\"\", E40=\"\"), \"\", VLOOKUP($D40&\"_\"&$E40, Lookups!$J$3:$M$83, 2, FALSE)*$N40))","v":""},{"$f":"IF(OR(D40=\"\",E40=\"\", D40=\"LED Refrig Case Lighting\",D40=\"LED Refrig Case Lighting Controls\"),\"\",IF(AND(D40=\"Hot Holding Cabinets\",E40=\"Half Size\"),Lookups!L24*N40,IF(AND(D40=\"Hot Holding Cabinets\",E40=\"3/4 Size\"),Lookups!L34*N40,IF(AND(D40=\"Hot Holding Cabinets\",E40=\"Full Size\"),Lookups!L44*N40,VLOOKUP($D40&\"_\"&$E40,Lookups!$J$3:$M$83,3,0)*$N40))))","v":""},"","",{"$f":"IF(OR(D40=\"\",E40=\"\", D40=\"LED Refrig Case Lighting\",D40=\"LED Refrig Case Lighting Controls\"),\"\",IF(AND(D40=\"Hot Holding Cabinets\",E40=\"Half Size\"),Lookups!M24*N40,IF(AND(D40=\"Hot Holding Cabinets\",E40=\"3/4 Size\"),Lookups!M34*N40,IF(AND(D40=\"Hot Holding Cabinets\",E40=\"Full Size\"),Lookups!M44*N40,VLOOKUP($D40&\"_\"&$E40,Lookups!$J$3:$M$83,4,0)*$N40))))","v":""},"","",""]
[null,19,null,null,null,null,null,null,null,null,null,null,null,null,{"$f":"IF(D41=\"\",\"\",VLOOKUP(D41,Lookups!$D$3:$E$31,2,0))","v":""},{"$f":"IF(AND(L41=\"Leased\", M41<24), \"Lease Length Does Not Qualify\", IF(OR(D41=\"\", E41=\"\"), \"\", VLOOKUP($D41&\"_\"&$E41, Lookups!$J$3:$M$83, 2, FALSE)*$N41))","v":""},{"$f":"IF(OR(D41=\"\",E41=\"\", D41=\"LED Refrig Case Lighting\",D41=\"LED Refrig Case Lighting Controls\"),\"\",IF(AND(D41=\"Hot Holding Cabinets\",E41=\"Half Size\"),Lookups!L25*N41,IF(AND(D41=\"Hot Holding Cabinets\",E41=\"3/4 Size\"),Lookups!L35*N41,IF(AND(D41=\"Hot Holding Cabinets\",E41=\"Full Size\"),Lookups!L45*N41,VLOOKUP($D41&\"_\"&$E41,Lookups!$J$3:$M$83,3,0)*$N41))))","v":""},"","",{"$f":"IF(OR(D41=\"\",E41=\"\", D41=\"LED Refrig Case Lighting\",D41=\"LED Refrig Case Lighting Controls\"),\"\",IF(AND(D41=\"Hot Holding Cabinets\",E41=\"Half Size\"),Lookups!M25*N41,IF(AND(D41=\"Hot Holding Cabinets\",E41=\"3/4 Size\"),Lookups!M35*N41,IF(AND(D41=\"Hot Holding Cabinets\",E41=\"Full Size\"),Lookups!M45*N41,VLOOKUP($D41&\"_\"&$E41,Lookups!$J$3:$M$83,4,0)*$N41))))","v":""},"","",""]
[null,20,null,null,null,null,null,null,null,null,null,null,null,null,{"$f":"IF(D42=\"\",\"\",VLOOKUP(D42,Lookups!$D$3:$E$31,2,0))","v":""},{"$f":"IF(AND(L42=\"Leased\", M42<24), \"Lease Length Does Not Qualify\", IF(OR(D42=\"\", E42=\"\"), \"\", VLOOKUP($D42&\"_\"&$E42, Lookups!$J$3:$M$83, 2, FALSE)*$N42))","v":""},{"$f":"IF(OR(D42=\"\",E42=\"\", D42=\"LED Refrig Case Lighting\",D42=\"LED Refrig Case Lighting Controls\"),\"\",IF(AND(D42=\"Hot Holding Cabinets\",E42=\"Half Size\"),Lookups!L26*N42,IF(AND(D42=\"Hot Holding Cabinets\",E42=\"3/4 Size\"),Lookups!L36*N42,IF(AND(D42=\"Hot Holding Cabinets\",E42=\"Full Size\"),Lookups!L46*N42,VLOOKUP($D42&\"_\"&$E42,Lookups!$J$3:$M$83,3,0)*$N42))))","v":""},"","",{"$f":"IF(OR(D42=\"\",E42=\"\", D42=\"LED Refrig Case Lighting\",D42=\"LED Refrig Case Lighting Controls\"),\"\",IF(AND(D42=\"Hot Holding Cabinets\",E42=\"Half Size\"),Lookups!M26*N42,IF(AND(D42=\"Hot Holding Cabinets\",E42=\"3/4 Size\"),Lookups!M36*N42,IF(AND(D42=\"Hot Holding Cabinets\",E42=\"Full Size\"),Lookups!M46*N42,VLOOKUP($D42&\"_\"&$E42,Lookups!$J$3:$M$83,4,0)*$N42))))","v":""},"","",""]

{"sheet":"Measure Summary","index":5,"n_rows":40,"n_cols":10,"rows_kept":40,"cut":false,"hidden":false,"merged":[[39,1,39,8],[37,5,37,6],[29,5,29,6],[30,5,30,6],[31,5,31,6],[32,5,32,6],[33,5,33,6],[11,3,11,4],[17,5,18,6],[17,9,18,9],[17,7,18,7],[17,8,18,8],[10,7,10,8],[17,3,18,3],[17,4,18,4],[13,3,13,4],[1,1,1,9],[2,1,2,9],[3,1,3,9],[4,1,4,9],[12,3,12,4],[5,1,5,9],[8,1,8,9],[11,7,11,8],[12,7,12,8],[17,1,18,1],[17,2,18,2],[10,3,10,4],[19,5,19,6],[23,5,23,6],[34,5,34,6],[13,7,13,8],[38,5,38,6],[35,5,35,6],[36,5,36,6],[24,5,24,6],[20,5,20,6],[21,5,21,6],[22,5,22,6],[25,5,25,6],[26,5,26,6],[27,5,27,6],[28,5,28,6]]}
[]
[]
[]
[null,"Food Service and High-Efficiency Equipment"]
[null,"Measure Summary"]
[null,{"$f":"\"Version # \"&'Version Tracking'!C4","v":"Version # 15.1"}]
[null,"Copyright © 2025 ICF Resources, LLC, All Rights Reserved. Do not copy, distribute or quote without ICF’s written permission."]
[]
[null,"Required General Project Information"]
[]
[null,null,"Project Name",{"$f":"IF('Equipment Input'!D11=\"\",\"\",'Equipment Input'!D11)","v":""},null,null,"Prepared By",{"$f":"IF('Equipment Input'!G11=\"\",\"\",'Equipment Input'!G11)","v":""}]
[null,null,"Project Address",{"$f":"IF('Equipment Input'!D12=\"\",\"\",'Equipment Input'!D12)","v":""},null,null,"Contact Person",{"$f":"IF('Equipment Input'!G12=\"\",\"\",'Equipment Input'!G12)","v":""}]
[null,null,"City",{"$f":"IF('Equipment Input'!D13=\"\",\"\",'Equipment Input'!D13)","v":""},null,null,"Phone",{"$f":"IF('Equipment Input'!G13=\"\",\"\",'Equipment Input'!G13)","v":""}]
[null,null,"ZIP",{"$f":"IF('Equipment Input'!D14=\"\",\"\",'Equipment Input'!D14)","v":""},null,null,"Email",{"$f":"IF('Equipment Input'!G14=\"\",\"\",'Equipment Input'!G14)","v":""}]
[]
[]
[null,"Food Service & High Efficiency Equipment Information"]
[null,"Measure Type","Type/Size","Make","Model","Incentive/Units",null,"Units","Quantity","Subtotal Incentive"]
[]
[null,{"$f":"IF('Equipment Input'!D23=\"\",\"\",'Equipment Input'!D23)","v":""},{"$f":"IF('Equipment Input'!E23=\"\",\"\",'Equipment Input'!E23)","v":""},{"$f":"IF('Equipment Input'!F23=\"\",\"\",'Equipment Input'!F23)","v":""},{"$f":"IF('Equipment Input'!G23=\"\",\"\",'Equipment Input'!G23)","v":""},{"$f":"IF(OR(B20=\"\",C20=\"\"),\"\",VLOOKUP(B20&\"_\"&C20,Lookups!$J$3:$K$83,2,0))","v":""},{"$f":"IF('Equipment Input'!O23=\"\",\"\",'Equipment Input'!O23)","v":""},{"$f":"IF('Equipment Input'!O23=\"\",\"\",'Equipment Input'!O23)","v":""},{"$f":"IF('Equipment Input'!N23=\"\",\"\",'Equipment Input'!N23)","v":""},{"$f":"IF('Equipment Input'!P23=\"\",\"\",'Equipment Input'!P23)","v":""}]
[null,{"$f":"IF('Equipment Input'!D24=\"\",\"\",'Equipment Input'!D24)","v":""},{"$f":"IF('Equipment Input'!E24=\"\",\"\",'Equipment Input'!E24)","v":""},{"$f":"IF('Equipment Input'!F24=\"\",\"\",'Equipment Input'!F24)","v":""},{"$f":"IF('Equipment Input'!G24=\"\",\"\",'Equipment Input'!G24)","v":""},{"$f":"IF(OR(B21=\"\",C21=\"\"),\"\",VLOOKUP(B21&\"_\"&C21,Lookups!$J$3:$K$83,2,0))","v":""},{"$f":"IF('Equipment Input'!O24=\"\",\"\",'Equipment Input'!O24)","v":""},{"$f":"IF('Equipment Input'!O24=\"\",\"\",'Equipment Input'!O24)","v":""},{"$f":"IF('Equipment Input'!N24=\"\",\"\",'Equipment Input'!N24)","v":""},{"$f":"IF('Equipment Input'!P24=\"\",\"\",'Equipment Input'!P24)","v":""}]
[null,{"$f":"IF('Equipment Input'!D25=\"\",\"\",'Equipment Input'!D25)","v":""},{"$f":"IF('Equipment Input'!E25=\"\",\"\",'Equipment Input'!E25)","v":""},{"$f":"IF('Equipment Input'!F25=\"\",\"\",'Equipment Input'!F25)","v":""},{"$f":"IF('Equipment Input'!G25=\"\",\"\",'Equipment Input'!G25)","v":""},{"$f":"IF(OR(B22=\"\",C22=\"\"),\"\",VLOOKUP(B22&\"_\"&C22,Lookups!$J$3:$K$83,2,0))","v":""},{"$f":"IF('Equipment Input'!O25=\"\",\"\",'Equipment Input'!O25)","v":""},{"$f":"IF('Equipment Input'!O25=\"\",\"\",'Equipment Input'!O25)","v":""},{"$f":"IF('Equipment Input'!N25=\"\",\"\",'Equipment Input'!N25)","v":""},{"$f":"IF('Equipment Input'!P25=\"\",\"\",'Equipment Input'!P25)","v":""}]
[null,{"$f":"IF('Equipment Input'!D26=\"\",\"\",'Equipment Input'!D26)","v":""},{"$f":"IF('Equipment Input'!E26=\"\",\"\",'Equipment Input'!E26)","v":""},{"$f":"IF('Equipment Input'!F26=\"\",\"\",'Equipment Input'!F26)","v":""},{"$f":"IF('Equipment Input'!G26=\"\",\"\",'Equipment Input'!G26)","v":""},{"$f":"IF(OR(B23=\"\",C23=\"\"),\"\",VLOOKUP(B23&\"_\"&C23,Lookups!$J$3:$K$83,2,0))","v":""},{"$f":"IF('Equipment Input'!O26=\"\",\"\",'Equipment Input'!O26)","v":""},{"$f":"IF('Equipment Input'!O26=\"\",\"\",'Equipment Input'!O26)","v":""},{"$f":"IF('Equipment Input'!N26=\"\",\"\",'Equipment Input'!N26)","v":""},{"$f":"IF('Equipment Input'!P26=\"\",\"\",'Equipment Input'!P26)","v":""}]
[null,{"$f":"IF('Equipment Input'!D27=\"\",\"\",'Equipment Input'!D27)","v":""},{"$f":"IF('Equipment Input'!E27=\"\",\"\",'Equipment Input'!E27)","v":""},{"$f":"IF('Equipment Input'!F27=\"\",\"\",'Equipment Input'!F27)","v":""},{"$f":"IF('Equipment Input'!G27=\"\",\"\",'Equipment Input'!G27)","v":""},{"$f":"IF(OR(B24=\"\",C24=\"\"),\"\",VLOOKUP(B24&\"_\"&C24,Lookups!$J$3:$K$83,2,0))","v":""},{"$f":"IF('Equipment Input'!O27=\"\",\"\",'Equipment Input'!O27)","v":""},{"$f":"IF('Equipment Input'!O27=\"\",\"\",'Equipment Input'!O27)","v":""},{"$f":"IF('Equipment Input'!N27=\"\",\"\",'Equipment Input'!N27)","v":""},{"$f":"IF('Equipment Input'!P27=\"\",\"\",'Equipment Input'!P27)","v":""}]
[null,{"$f":"IF('Equipment Input'!D28=\"\",\"\",'Equipment Input'!D28)","v":""},{"$f":"IF('Equipment Input'!E28=\"\",\"\",'Equipment Input'!E28)","v":""},{"$f":"IF('Equipment Input'!F28=\"\",\"\",'Equipment Input'!F28)","v":""},{"$f":"IF('Equipment Input'!G28=\"\",\"\",'Equipment Input'!G28)","v":""},{"$f":"IF(OR(B25=\"\",C25=\"\"),\"\",VLOOKUP(B25&\"_\"&C25,Lookups!$J$3:$K$83,2,0))","v":""},{"$f":"IF('Equipment Input'!O28=\"\",\"\",'Equipment Input'!O28)","v":""},{"$f":"IF('Equipment Input'!O28=\"\",\"\",'Equipment Input'!O28)","v":""},{"$f":"IF('Equipment Input'!N28=\"\",\"\",'Equipment Input'!N28)","v":""},{"$f":"IF('Equipment Input'!P28=\"\",\"\",'Equipment Input'!P28)","v":""}]
[null,{"$f":"IF('Equipment Input'!D29=\"\",\"\",'Equipment Input'!D29)","v":""},{"$f":"IF('Equipment Input'!E29=\"\",\"\",'Equipment Input'!E29)","v":""},{"$f":"IF('Equipment Input'!F29=\"\",\"\",'Equipment Input'!F29)","v":""},{"$f":"IF('Equipment Input'!G29=\"\",\"\",'Equipment Input'!G29)","v":""},{"$f":"IF(OR(B26=\"\",C26=\"\"),\"\",VLOOKUP(B26&\"_\"&C26,Lookups!$J$3:$K$83,2,0))","v":""},{"$f":"IF('Equipment Input'!O29=\"\",\"\",'Equipment Input'!O29)","v":""},{"$f":"IF('Equipment Input'!O29=\"\",\"\",'Equipment Input'!O29)","v":""},{"$f":"IF('Equipment Input'!N29=\"\",\"\",'Equipment Input'!N29)","v":""},{"$f":"IF('Equipment Input'!P29=\"\",\"\",'Equipment Input'!P29)","v":""}]
[null,{"$f":"IF('Equipment Input'!D30=\"\",\"\",'Equipment Input'!D30)","v":""},{"$f":"IF('Equipment Input'!E30=\"\",\"\",'Equipment Input'!E30)","v":""},{"$f":"IF('Equipment Input'!F30=\"\",\"\",'Equipment Input'!F30)","v":""},{"$f":"IF('Equipment Input'!G30=\"\",\"\",'Equipment Input'!G30)","v":""},{"$f":"IF(OR(B27=\"\",C27=\"\"),\"\",VLOOKUP(B27&\"_\"&C27,Lookups!$J$3:$K$83,2,0))","v":""},{"$f":"IF('Equipment Input'!O30=\"\",\"\",'Equipment Input'!O30)","v":""},{"$f":"IF('Equipment Input'!O30=\"\",\"\",'Equipment Input'!O30)","v":""},{"$f":"IF('Equipment Input'!N30=\"\",\"\",'Equipment Input'!N30)","v":""},{"$f":"IF('Equipment Input'!P30=\"\",\"\",'Equipment Input'!P30)","v":""}]
[null,{"$f":"IF('Equipment Input'!D31=\"\",\"\",'Equipment Input'!D31)","v":""},{"$f":"IF('Equipment Input'!E31=\"\",\"\",'Equipment Input'!E31)","v":""},{"$f":"IF('Equipment Input'!F31=\"\",\"\",'Equipment Input'!F31)","v":""},{"$f":"IF('Equipment Input'!G31=\"\",\"\",'Equipment Input'!G31)","v":""},{"$f":"IF(OR(B28=\"\",C28=\"\"),\"\",VLOOKUP(B28&\"_\"&C28,Lookups!$J$3:$K$83,2,0))","v":""},{"$f":"IF('Equipment Input'!O31=\"\",\"\",'Equipment Input'!O31)","v":""},{"$f":"IF('Equipment Input'!O31=\"\",\"\",'Equipment Input'!O31)","v":""},{"$f":"IF('Equipment Input'!N31=\"\",\"\",'Equipment Input'!N31)","v":""},{"$f":"IF('Equipment Input'!P31=\"\",\"\",'Equipment Input'!P31)","v":""}]
[null,{"$f":"IF('Equipment Input'!D32=\"\",\"\",'Equipment Input'!D32)","v":""},{"$f":"IF('Equipment Input'!E32=\"\",\"\",'Equipment Input'!E32)","v":""},{"$f":"IF('Equipment Input'!F32=\"\",\"\",'Equipment Input'!F32)","v":""},{"$f":"IF('Equipment Input'!G32=\"\",\"\",'Equipment Input'!G32)","v":""},{"$f":"IF(OR(B29=\"\",C29=\"\"),\"\",VLOOKUP(B29&\"_\"&C29,Lookups!$J$3:$K$83,2,0))","v":""},{"$f":"IF('Equipment Input'!O32=\"\",\"\",'Equipment Input'!O32)","v":""},{"$f":"IF('Equipment Input'!O32=\"\",\"\",'Equipment Input'!O32)","v":""},{"$f":"IF('Equipment Input'!N32=\"\",\"\",'Equipment Input'!N32)","v":""},{"$f":"IF('Equipment Input'!P32=\"\",\"\",'Equipment Input'!P32)","v":""}]
[null,{"$f":"IF('Equipment Input'!D33=\"\",\"\",'Equipment Input'!D33)","v":""},{"$f":"IF('Equipment Input'!E33=\"\",\"\",'Equipment Input'!E33)","v":""},{"$f":"IF('Equipment Input'!F33=\"\",\"\",'Equipment Input'!F33)","v":""},{"$f":"IF('Equipment Input'!G33=\"\",\"\",'Equipment Input'!G33)","v":""},{"$f":"IF(OR(B30=\"\",C30=\"\"),\"\",VLOOKUP(B30&\"_\"&C30,Lookups!$J$3:$K$83,2,0))","v":""},{"$f":"IF('Equipment Input'!O33=\"\",\"\",'Equipment Input'!O33)","v":""},{"$f":"IF('Equipment Input'!O33=\"\",\"\",'Equipment Input'!O33)","v":""},{"$f":"IF('Equipment Input'!N33=\"\",\"\",'Equipment Input'!N33)","v":""},{"$f":"IF('Equipment Input'!P33=\"\",\"\",'Equipment Input'!P33)","v":""}]
[null,{"$f":"IF('Equipment Input'!D34=\"\",\"\",'Equipment Input'!D34)","v":""},{"$f":"IF('Equipment Input'!E34=\"\",\"\",'Equipment Input'!E34)","v":""},{"$f":"IF('Equipment Input'!F34=\"\",\"\",'Equipment Input'!F34)","v":""},{"$f":"IF('Equipment Input'!G34=\"\",\"\",'Equipment Input'!G34)","v":""},{"$f":"IF(OR(B31=\"\",C31=\"\"),\"\",VLOOKUP(B31&\"_\"&C31,Lookups!$J$3:$K$83,2,0))","v":""},{"$f":"IF('Equipment Input'!O34=\"\",\"\",'Equipment Input'!O34)","v":""},{"$f":"IF('Equipment Input'!O34=\"\",\"\",'Equipment Input'!O34)","v":""},{"$f":"IF('Equipment Input'!N34=\"\",\"\",'Equipment Input'!N34)","v":""},{"$f":"IF('Equipment Input'!P34=\"\",\"\",'Equipment Input'!P34)","v":""}]
[null,{"$f":"IF('Equipment Input'!D35=\"\",\"\",'Equipment Input'!D35)","v":""},{"$f":"IF('Equipment Input'!E35=\"\",\"\",'Equipment Input'!E35)","v":""},{"$f":"IF('Equipment Input'!F35=\"\",\"\",'Equipment Input'!F35)","v":""},{"$f":"IF('Equipment Input'!G35=\"\",\"\",'Equipment Input'!G35)","v":""},{"$f":"IF(OR(B32=\"\",C32=\"\"),\"\",VLOOKUP(B32&\"_\"&C32,Lookups!$J$3:$K$83,2,0))","v":""},{"$f":"IF('Equipment Input'!O35=\"\",\"\",'Equipment Input'!O35)","v":""},{"$f":"IF('Equipment Input'!O35=\"\",\"\",'Equipment Input'!O35)","v":""},{"$f":"IF('Equipment Input'!N35=\"\",\"\",'Equipment Input'!N35)","v":""},{"$f":"IF('Equipment Input'!P35=\"\",\"\",'Equipment Input'!P35)","v":""}]
[null,{"$f":"IF('Equipment Input'!D36=\"\",\"\",'Equipment Input'!D36)","v":""},{"$f":"IF('Equipment Input'!E36=\"\",\"\",'Equipment Input'!E36)","v":""},{"$f":"IF('Equipment Input'!F36=\"\",\"\",'Equipment Input'!F36)","v":""},{"$f":"IF('Equipment Input'!G36=\"\",\"\",'Equipment Input'!G36)","v":""},{"$f":"IF(OR(B33=\"\",C33=\"\"),\"\",VLOOKUP(B33&\"_\"&C33,Lookups!$J$3:$K$83,2,0))","v":""},{"$f":"IF('Equipment Input'!O36=\"\",\"\",'Equipment Input'!O36)","v":""},{"$f":"IF('Equipment Input'!O36=\"\",\"\",'Equipment Input'!O36)","v":""},{"$f":"IF('Equipment Input'!N36=\"\",\"\",'Equipment Input'!N36)","v":""},{"$f":"IF('Equipment Input'!P36=\"\",\"\",'Equipment Input'!P36)","v":""}]
[null,{"$f":"IF('Equipment Input'!D37=\"\",\"\",'Equipment Input'!D37)","v":""},{"$f":"IF('Equipment Input'!E37=\"\",\"\",'Equipment Input'!E37)","v":""},{"$f":"IF('Equipment Input'!F37=\"\",\"\",'Equipment Input'!F37)","v":""},{"$f":"IF('Equipment Input'!G37=\"\",\"\",'Equipment Input'!G37)","v":""},{"$f":"IF(OR(B34=\"\",C34=\"\"),\"\",VLOOKUP(B34&\"_\"&C34,Lookups!$J$3:$K$83,2,0))","v":""},{"$f":"IF('Equipment Input'!O37=\"\",\"\",'Equipment Input'!O37)","v":""},{"$f":"IF('Equipment Input'!O37=\"\",\"\",'Equipment Input'!O37)","v":""},{"$f":"IF('Equipment Input'!N37=\"\",\"\",'Equipment Input'!N37)","v":""},{"$f":"IF('Equipment Input'!P37=\"\",\"\",'Equipment Input'!P37)","v":""}]
[null,{"$f":"IF('Equipment Input'!D38=\"\",\"\",'Equipment Input'!D38)","v":""},{"$f":"IF('Equipment Input'!E38=\"\",\"\",'Equipment Input'!E38)","v":""},{"$f":"IF('Equipment Input'!F38=\"\",\"\",'Equipment Input'!F38)","v":""},{"$f":"IF('Equipment Input'!G38=\"\",\"\",'Equipment Input'!G38)","v":""},{"$f":"IF(OR(B35=\"\",C35=\"\"),\"\",VLOOKUP(B35&\"_\"&C35,Lookups!$J$3:$K$83,2,0))","v":""},{"$f":"IF('Equipment Input'!O38=\"\",\"\",'Equipment Input'!O38)","v":""},{"$f":"IF('Equipment Input'!O38=\"\",\"\",'Equipment Input'!O38)","v":""},{"$f":"IF('Equipment Input'!N38=\"\",\"\",'Equipment Input'!N38)","v":""},{"$f":"IF('Equipment Input'!P38=\"\",\"\",'Equipment Input'!P38)","v":""}]
[null,{"$f":"IF('Equipment Input'!D39=\"\",\"\",'Equipment Input'!D39)","v":""},{"$f":"IF('Equipment Input'!E39=\"\",\"\",'Equipment Input'!E39)","v":""},{"$f":"IF('Equipment Input'!F39=\"\",\"\",'Equipment Input'!F39)","v":""},{"$f":"IF('Equipment Input'!G39=\"\",\"\",'Equipment Input'!G39)","v":""},{"$f":"IF(OR(B36=\"\",C36=\"\"),\"\",VLOOKUP(B36&\"_\"&C36,Lookups!$J$3:$K$83,2,0))","v":""},{"$f":"IF('Equipment Input'!O39=\"\",\"\",'Equipment Input'!O39)","v":""},{"$f":"IF('Equipment Input'!O39=\"\",\"\",'Equipment Input'!O39)","v":""},{"$f":"IF('Equipment Input'!N39=\"\",\"\",'Equipment Input'!N39)","v":""},{"$f":"IF('Equipment Input'!P39=\"\",\"\",'Equipment Input'!P39)","v":""}]
[null,{"$f":"IF('Equipment Input'!D40=\"\",\"\",'Equipment Input'!D40)","v":""},{"$f":"IF('Equipment Input'!E40=\"\",\"\",'Equipment Input'!E40)","v":""},{"$f":"IF('Equipment Input'!F40=\"\",\"\",'Equipment Input'!F40)","v":""},{"$f":"IF('Equipment Input'!G40=\"\",\"\",'Equipment Input'!G40)","v":""},{"$f":"IF(OR(B37=\"\",C37=\"\"),\"\",VLOOKUP(B37&\"_\"&C37,Lookups!$J$3:$K$83,2,0))","v":""},{"$f":"IF('Equipment Input'!O40=\"\",\"\",'Equipment Input'!O40)","v":""},{"$f":"IF('Equipment Input'!O40=\"\",\"\",'Equipment Input'!O40)","v":""},{"$f":"IF('Equipment Input'!N40=\"\",\"\",'Equipment Input'!N40)","v":""},{"$f":"IF('Equipment Input'!P40=\"\",\"\",'Equipment Input'!P40)","v":""}]
[null,{"$f":"IF('Equipment Input'!D41=\"\",\"\",'Equipment Input'!D41)","v":""},{"$f":"IF('Equipment Input'!E41=\"\",\"\",'Equipment Input'!E41)","v":""},{"$f":"IF('Equipment Input'!F41=\"\",\"\",'Equipment Input'!F41)","v":""},{"$f":"IF('Equipment Input'!G41=\"\",\"\",'Equipment Input'!G41)","v":""},{"$f":"IF(OR(B38=\"\",C38=\"\"),\"\",VLOOKUP(B38&\"_\"&C38,Lookups!$J$3:$K$83,2,0))","v":""},{"$f":"IF('Equipment Input'!O41=\"\",\"\",'Equipment Input'!O41)","v":""},{"$f":"IF('Equipment Input'!O41=\"\",\"\",'Equipment Input'!O41)","v":""},{"$f":"IF('Equipment Input'!N41=\"\",\"\",'Equipment Input'!N41)","v":""},{"$f":"IF('Equipment Input'!P41=\"\",\"\",'Equipment Input'!P41)","v":""}]
[null,{"$f":"IF('Equipment Input'!D42=\"\",\"\",'Equipment Input'!D42)","v":""},{"$f":"IF('Equipment Input'!E42=\"\",\"\",'Equipment Input'!E42)","v":""},{"$f":"IF('Equipment Input'!F42=\"\",\"\",'Equipment Input'!F42)","v":""},{"$f":"IF('Equipment Input'!G42=\"\",\"\",'Equipment Input'!G42)","v":""},{"$f":"IF(OR(B39=\"\",C39=\"\"),\"\",VLOOKUP(B39&\"_\"&C39,Lookups!$J$3:$K$83,2,0))","v":""},{"$f":"IF('Equipment Input'!O42=\"\",\"\",'Equipment Input'!O42)","v":""},{"$f":"IF('Equipment Input'!O42=\"\",\"\",'Equipment Input'!O42)","v":""},{"$f":"IF('Equipment Input'!N42=\"\",\"\",'Equipment Input'!N42)","v":""},{"$f":"IF('Equipment Input'!P42=\"\",\"\",'Equipment Input'!P42)","v":""}]
[null,"Total Pre-approved Incentive",null,null,null,null,null,null,null,{"$f":"SUM(J20:J39)","v":0}]

{"sheet":"Technical & Input Instructions","index":6,"n_rows":31,"n_cols":7,"rows_kept":31,"cut":false,"hidden":false,"merged":[[30,6,30,7],[17,3,17,6],[18,3,18,6],[1,1,1,7],[2,1,2,7],[3,1,3,7],[12,3,12,6],[13,3,13,6],[14,3,14,6],[15,3,15,6],[16,2,16,6],[7,2,7,6],[8,3,8,6],[9,3,9,6],[10,2,10,6],[11,3,11,6],[23,2,23,6],[24,2,24,6],[25,2,25,6],[26,2,26,6],[28,3,28,4]]}
[]
[]
[]
[null,"Food Service and High Efficiency Equipment"]
[]
[null,null,"Copyright © 2025 ICF Resources, LLC, All Rights Reserved. Do not copy, distribute or quote without ICF’s written permission."]
[null,null,"Technical Requirements"]
[null,null,"HIGH-EFFICIENCY COMMERCIAL EQUIPMENT"]
[null,null,null,"▪ Only ENERGY STAR®-qualified equipment is eligible for incentives under this application. \n▪ Cook and hold food cabinets are not eligible for incentives.\n▪ Electric steam cookers with greater than six-pan capacity may be considered for incentives under the Custom application.\n▪ Only air-cooled machines (self-contained, ice making heads or remote condensing) are eligible. Commercial ice machines with remote \n   condensing units must be purchased with their ARI-rated cuber.\n▪ Drawer cabinets, prep tables, deli cases, and open air units are not eligible for incentives.\n▪ For lists of qualified products, visit:"]
[null,null,null,"http://www.energystar.gov/products?s=mega"]
[null,null,"HIGH-EFFICIENCY REFRIGERATION COMPONENTS"]
[null,null,null,"▪ Anti-sweat heater controls must sense the relative humidity or dew point of the surrounding air to control glass door or frame anti-sweat heaters."]
[null,null,null,"▪ The replacement unit must be an Electronically Commutated Motor, which is a brushless DC motor that operates more efficiently than standard \n   electro-mechanical refrigeration fan motors. Electronically Commutated Motor fan motors must replace an existing standard-efficiency shaded-\n   pole evaporator or permanent split capacitor fan motor in refrigerated walk-in, reach-in, or display boxes (coolers or freezers)."]
[null,null,null,"▪ Refrigeration night covers must be applied for a minimum of six hours per day to qualify for incentives. Covers may be applied to medium- or \n   low-temperature open cases of horizontal or vertical configuration."]
[null,null,null,"▪ LED refrigerated case lighting must be installed as a retrofit measure to replace existing linear fluorescent case lighting. To qualify for incentives, \n   the existing ballast and lampholders must be permanently removed and replaced with an LED refrigeration retrofit kit certified by a Nationally   \n   Recognized Testing Laboratory (NRTL). Existing wiring may be reused, if necessary."]
[null,null,null,"▪ LED refrigerated case lighting controls may be installed for stand-alone or aisle refrigerated cases."]
[null,null,"RECEPTACLE LOAD CONTROLS"]
[null,null,null,"▪ Vending machine controls may be installed to de-energize machines when the facility is not occupied. Controls must include a passive infrared \n   sensor to turn off lighting. For refrigerated machines, controls must be able to cycle the compressor to maintain products at a maximum desired \n   temperature."]
[null,null,null,"▪ Personal receptacle occupancy sensors may be installed in open, private or common areas of office facilities. Controls must include a passive \n   infrared occupancy sensor and connected power strip. The power strip must be able to maintain constant power for selected loads. To qualify for \n   incentives, provide information on average connected load per sensor. Suggested loads include task lighting, personal printers, monitors, and \n   related equipment."]
[]
[null,null,"Input Instructions"]
[null,null,"On the Equipment Input Tab, fill out all the blue shaded cells. "]
[]
[null,null,"1. Read Technical & Input Instructions (information above) and Equipment Incentives tab for detailed information on equipment requirements and \n    eligibility."]
[null,null,"2. Select Measure Type, then select Type/Size, then enter make, model and quantity of equipment being applied for in blue shaded areas of\n    Equipment Input tab."]
[null,null,"3. Measure Summary tab will be automatically populated based on Equipment Input tab entries."]
[null,null,"4. Application packages must be submitted by email."]
[null,null,null,"Email Address:"]
[null,null,null,"EnergyExperts@SC.DominionEnergyAccount.com"]
[]
[null,null,null,null,null,null,{"$f":"\"Version \" & 'Version Tracking'!C4","v":"Version 15.1"}]

{"sheet":"Equipment Incentives","index":7,"n_rows":71,"n_cols":4,"rows_kept":71,"cut":false,"hidden":false,"merged":[[20,0,26,0],[20,1,22,1],[24,1,26,1],[28,0,30,0],[0,1,0,3],[1,1,1,3],[3,0,18,0],[3,1,6,1],[8,1,10,1],[52,0,55,0],[52,1,53,1],[57,0,68,0],[59,1,62,1],[32,0,50,0],[32,1,35,1],[37,1,40,1],[42,1,45,1],[47,1,50,1]]}
[null,"Dominion Energy South Carolina, Inc. "]
[null,"EQUIPMENT MEASURES AND INCENTIVES"]
[null,"Proposed\nMeasure","Measure Type","Incentive/ Unit"]
["HE Food Prep","Steam Cookers","3 Pan",800]
[null,null,"4 Pan",800]
[null,null,"5 Pan",1200]
[null,null,"6 Pan",1200]
[]
[null,"Insulated Hot Holding Cabinets","Half Size: 0 < V < 13",300]
[null,null,"3/4 Size: 13 ≤ V < 28 ",400]
[null,null,"Full Size: 28 ≤ V",500]
[]
[null,"High-Efficiency Electric Fryers","Large Vat","$300/Vat"]
[]
[null,"Electric Griddles","All",300]
[]
[null,"High-Efficiency Electric Convection Ovens","All","$400/oven"]
[]
[null,"High-Efficiency Electric Combination Ovens","All",1000]
[]
["Ice Machines","Ice Machine - Batch","Ice Making Head",150]
[null,null,"Split System",100]
[null,null,"Self-Contained",50]
[]
[null,"Ice Machine - Continuous","Ice Making Head",125]
[null,null,"Split System",150]
[null,null,"Self-Contained",75]
[]
["Clothes\nWashers","Commercial Clothes Washers","Electric Water Heater",50]
[]
[null,"Commercial Clothes Washers","Non-Electric Water Heater",50]
[]
["Refrigerators & Freezers","Commercial Reach-in\nRefrigerators","V < 15 cubic feet",20]
[null,null,"15 ≤ V < 30 cubic feet",30]
[null,null,"30 ≤ V < 50 cubic feet",50]
[null,null,"V ≥ 50 cubic feet",100]
[]
[null,"Commercial Glass Door Reach-in\nRefrigerators","V < 15 cubic feet",55]
[null,null,"15 ≤ V < 30 cubic feet",55]
[null,null,"30 ≤ V < 50 cubic feet",75]
[null,null,"V ≥ 50 cubic feet",100]
[]
[null,"Commercial Reach-in\nFreezers","V < 15 cubic feet",50]
[null,null,"15 ≤ V < 30 cubic feet",75]
[null,null,"30 ≤ V < 50 cubic feet",125]
[null,null,"V ≥ 50 cubic feet",175]
[]
[null,"Commercial Glass-Door Reach-in\nFreezers","V < 15 cubic feet",75]
[null,null,"15 ≤ V < 30 cubic feet",100]
[null,null,"30 ≤ V < 50 cubic feet",150]
[null,null,"V ≥ 50 cubic feet",200]
[]
["Receptacle Load\nControls","Vending Machine Controls\n(Vending Misers)","Refrigerated",20]
[null,null,"Non-Refrigerated",10]
[]
[null,"Personal Receptacle\nOccupancy Sensors\n(Cubicle Controls)","Power Strip with Occupancy Sensor","$5/control"]
[]
["HE Refrig Components","Anti-Sweat Heater Controls","Cooler/Freezer Doors","$50/door"]
[]
[null,"Electronically Commutated Motors \n(Walk-in, Reach-in, \nand Display Coolers/Freezers)","Walk-in Cooler/Freezer Replacing Shaded Pole","$100/motor"]
[null,null,"Walk-in Cooler/Freezer Replacing PSC Motor","$50/motor"]
[null,null,"Reach-in Cooler/Freezer","$35/motor"]
[null,null,"Display Cooler/Freezer","$35/motor"]
[]
[null,"Refrigeration Night Covers","Linear Feet (Freezers/Coolers)","$5/foot"]
[]
[null,"LED Refrigerated Case Lighting","Coolers / Freezers","$25/door"]
[]
[null,"LED Refrigerated Case Lighting Controls","All","$5/door"]
[]
[null,null,null,{"$f":"\"Version \" & 'Version Tracking'!C4","v":"Version 15.1"}]

{"sheet":"Input Key","index":8,"n_rows":22,"n_cols":4,"rows_kept":22,"cut":false,"hidden":true,"merged":[]}
[]
[]
[null,"Building Type",null,"Measure Type"]
[null,"Office",null,"Steam Cookers"]
[null,"Retail",null,"Hot Holding Cabinets"]
[null,"School",null,"Fryers"]
[null,"University",null,"Griddles"]
[null,"Religious Facility",null,"Convection Ovens"]
[null,"Grocery",null,"Combination Ovens"]
[null,"Lodging",null,"Ice Machines Tier 1"]
[null,"Industrial",null,"Ice Machines Tier 2 - Cube"]
[null,"Warehouse",null,"Ice Machines Tier 2 - Flake"]
[null,"Health Facility",null,"Reach-in Refrigerators"]
[null,"Multifamily",null,"Glass Door Reach-in Refrig"]
[null,"Restaurant",null,"Reach-in Freezers"]
[null,"Other",null,"Clothes Washers"]
[null,null,null,"Anti-Sweat Heater Controls"]
[null,null,null,"ECM (Coolers/Freezers)"]
[null,null,null,"Refrigeration Night Covers"]
[null,null,null,"LED Refrig Case Lighting"]
[null,null,null,"LED Refrig Case Lighting Controls"]
[null,null,null,"Vending Machine Controls "]

{"sheet":"Validation","index":9,"n_rows":56,"n_cols":34,"rows_kept":56,"cut":false,"hidden":true,"merged":[]}
[null,null,null,null,null,null,{"$f":"COUNTA(G3:G19)","v":4},{"$f":"COUNTA(H3:H19)","v":3},1,1,1,1,3,3,4,4,4,4,2,2,{"$f":"COUNTA(U3:U17)","v":8},2,2,2,2,1]
[null,"Building Type",null,"Measure Type","Useful Life",null,"Steam Cookers","Hot Holding Cabinets","Fryers","Griddles","Convection Ovens","Combination Ovens","Ice Machines Batch","Ice Machines Continuous","Reach-in Refrigerators","Glass Door Reach-in Refrig","Reach-in Freezers","Glass Door Reach-in Freezers","Clothes Washers","Anti-Sweat Heater Controls","ECM (Coolers/Freezers)","Refrigeration Night Covers","LED Refrig Case Lighting","LED Refrig Case Lighting Controls","Vending Machine Controls","Personal Recept Occ Sensors",null,null,"Measure Type","Size","MeasureType+Size","Measure Code","Useful Life","Equipment status"]
[null,"Office",null,"Steam Cookers",12,null,"3 Pan","Half Size","Large Vat","All","All","All","Ice Making Head","Ice Making Head","< 15 cubic feet","< 15 cubic feet","< 15 cubic feet","< 15 cubic feet","Electric water heater","Cooler Doors","Reach-in Cooler","Freezers","Coolers","Coolers","Refrigerated","Power Strip with Occupancy Sensor",null,null,"Steam Cookers","3 Pan",{"$f":"CONCATENATE(AC3, \" \",AD3)","v":"Steam Cookers 3 Pan"},"SC3",{"$f":"VLOOKUP(AC3,$D$3:$E$22,2,FALSE)","v":12},"Purchased"]
[null,"Retail",null,"Hot Holding Cabinets",12,null,"4 Pan","3/4 Size",null,null,null,null,"Split System","Split System","15 - 30 cubic feet","15 - 30 cubic feet","15 - 30 cubic feet","15 - 30 cubic feet","Non-electric water heater","Freezer Doors","Reach-in Freezer","Coolers","Freezers","Freezers","Non-Refrigerated",null,null,null,"Steam Cookers","4 Pan","Steam Cookers 4 Pan","SC4",12,"Leased"]
[null,"School",null,"Fryers",12,null,"5 Pan","Full Size",null,null,null,null,"Self-Contained","Self-Contained","31 - 50 cubic feet","31 - 50 cubic feet","31 - 50 cubic feet","31 - 50 cubic feet",null,null,"Display Cooler",null,null,null,null,null,null,null,"Steam Cookers","5 Pan","Steam Cookers 5 Pan","SC5",12]
[null,"University",null,"Griddles",12,null,"6 Pan",null,null,null,null,null,null,null,"> 50 cubic feet","> 50 cubic feet","> 50 cubic feet","> 50 cubic feet",null,null,"Display Freezer",null,null,null,null,null,null,null,"Steam Cookers","6 Pan","Steam Cookers 6 Pan","SC6",12]
[null,"Religious Facility",null,"Convection Ovens",12,null,null,null,null,null,null,null,null,null,null,null,null,null,null,null,"Walk-in Cooler replacing PSC",null,null,null,null,null,null,null,"Hot Holding Cabinets","Half Size","Hot Holding Cabinets Half Size","HC1",12]
[null,"Grocery",null,"Combination Ovens",12,null,null,null,null,null,null,null,null,null,null,null,null,null,null,null,"Walk-in Freezer replacing PSC",null,null,null,null,null,null,null,"Hot Holding Cabinets","3/4 Size","Hot Holding Cabinets 3/4 Size","HC2",12]
[null,"Lodging",null,"Ice Machines Batch",12,null,null,null,null,null,null,null,null,null,null,null,null,null,null,null,"Walk-in Cooler replacing Shaded Poll",null,null,null,null,null,null,null,"Hot Holding Cabinets","Full Size","Hot Holding Cabinets Full Size","HCF",12]
[null,"Industrial",null,"Ice Machines Continuous",12,null,null,null,null,null,null,null,null,null,null,null,null,null,null,null,"Walk-in Freezer replacing Shaded Poll",null,null,null,null,null,null,null,"Fryers","Large Vat","Fryers Large Vat","FLV",12]
[null,"Warehouse",null,"Reach-in Refrigerators",12,null,null,null,null,null,null,null,null,null,null,null,null,null,null,null,null,null,null,null,null,null,null,null,"Griddles","All","Griddles All","GRD",12]
[null,"Health Facility",null,"Glass Door Reach-in Refrig",12,null,null,null,null,null,null,null,null,null,null,null,null,null,null,null,null,null,null,null,null,null,null,null,"Convection Ovens","All","Convection Ovens All","CVO",12]
[null,"Multifamily",null,"Reach-in Freezers",12,null,null,null,null,null,null,null,null,null,null,null,null,null,null,null,null,null,null,null,null,null,null,null,"Combination Ovens","All","Combination Ovens All","CMBO",12]
[null,"Restaurant",null,"Glass Door Reach-in Freezers",12,null,null,null,null,null,null,null,null,null,null,null,null,null,null,null,null,null,null,null,null,null,null,null,"Clothes Washers","Electric water heater","Clothes Washers Electric water heater","CLW",10]
[null,"Other",null,"Clothes Washers",11,null,null,null,null,null,null,null,null,null,null,null,null,null,null,null,null,null,null,null,null,null,null,null,"Clothes Washers","Non-electric water heater","Clothes Washers Non-electric water heater","CLW",10]
[null,null,null,"Anti-Sweat Heater Controls",16,null,null,null,null,null,null,null,null,null,null,null,null,null,null,null,null,null,null,null,null,null,null,null,"Ice Machines Batch","Ice Making Head","Ice Machines Batch Ice Making Head","IC26",{"$f":"VLOOKUP(AC16,$D$3:$E$22,2,FALSE)","v":12}]
[null,null,null,"ECM (Coolers/Freezers)",10,null,null,null,null,null,null,null,null,null,null,null,null,null,null,null,null,null,null,null,null,null,null,null,"Ice Machines Batch","Split System","Ice Machines Batch Split System","IC27",12]
[null,null,null,"Refrigeration Night Covers",5,null,null,null,null,null,null,null,null,null,null,null,null,null,null,null,null,null,null,null,null,null,null,null,"Ice Machines Batch","Self-Contained","Ice Machines Batch Self-Contained","IC28",12]
[null,null,null,"LED Refrig Case Lighting",10,null,null,null,null,null,null,null,null,null,null,null,null,null,null,null,null,null,null,null,null,null,null,null,"Ice Machines Continuous","Ice Making Head","Ice Machines Continuous Ice Making Head","IC29",12]
[null,null,null,"LED Refrig Case Lighting Controls",10,null,null,null,null,null,null,null,null,null,null,null,null,null,null,null,null,null,null,null,null,null,null,null,"Ice Machines Continuous","Split System",{"$f":"CONCATENATE(AC20, \" \",AD20)","v":"Ice Machines Continuous Split System"},"IC30",12]
[null,null,null,"Vending Machine Controls",10,null,null,null,null,null,null,null,null,null,null,null,null,null,null,null,null,null,null,null,null,null,null,null,"Ice Machines Continuous","Self-Contained","Ice Machines Continuous Self-Contained","IC31",12]
[null,null,null,"Personal Recept Occ Sensors",10,null,null,null,null,null,null,null,null,null,null,null,null,null,null,null,null,null,null,null,null,null,null,null,"Reach-in Refrigerators","< 15 cubic feet","Reach-in Refrigerators < 15 cubic feet","RR1",12]
[null,null,null,null,null,null,null,null,null,null,null,null,null,null,null,null,null,null,null,null,null,null,null,null,null,null,null,null,"Reach-in Refrigerators","15 - 30 cubic feet","Reach-in Refrigerators 15 - 30 cubic feet","RR2",12]
[null,null,null,null,null,null,null,null,null,null,null,null,null,null,null,null,null,null,null,null,null,null,null,null,null,null,null,null,"Reach-in Refrigerators","31 - 50 cubic feet","Reach-in Refrigerators 31 - 50 cubic feet","RR3",12]
[null,null,null,null,null,null,null,null,null,null,null,null,null,null,null,null,null,null,null,null,null,null,null,null,null,null,null,null,"Reach-in Refrigerators","> 50 cubic feet","Reach-in Refrigerators > 50 cubic feet","RR4",12]
[null,null,null,null,null,null,null,null,null,null,null,null,null,null,null,null,null,null,null,null,null,null,null,null,null,null,null,null,"Glass Door Reach-in Refrig","< 15 cubic feet","Glass Door Reach-in Refrig < 15 cubic feet","GDR1",12]
[null,null,null,null,null,null,null,null,null,null,null,null,null,null,null,null,null,null,null,null,null,null,null,null,null,null,null,null,"Glass Door Reach-in Refrig","15 - 30 cubic feet","Glass Door Reach-in Refrig 15 - 30 cubic feet","GDR2",12]
[null,null,null,null,null,null,null,null,null,null,null,null,null,null,null,null,null,null,null,null,null,null,null,null,null,null,null,null,"Glass Door Reach-in Refrig","31 - 50 cubic feet","Glass Door Reach-in Refrig 31 - 50 cubic feet","GDR3",12]
[null,null,null,null,null,null,null,null,null,null,null,null,null,null,null,null,null,null,null,null,null,null,null,null,null,null,null,null,"Glass Door Reach-in Refrig","> 50 cubic feet","Glass Door Reach-in Refrig > 50 cubic feet","GDR4",12]
[null,null,null,null,null,null,null,null,null,null,null,null,null,null,null,null,null,null,null,null,null,null,null,null,null,null,null,null,"Reach-in Freezers","< 15 cubic feet","Reach-in Freezers < 15 cubic feet","RF1",12]
[null,null,null,null,null,null,null,null,null,null,null,null,null,null,null,null,null,null,null,null,null,null,null,null,null,null,null,null,"Reach-in Freezers","15 - 30 cubic feet","Reach-in Freezers 15 - 30 cubic feet","RF2",12]
[null,null,null,null,null,null,null,null,null,null,null,null,null,null,null,null,null,null,null,null,null,null,null,null,null,null,null,null,"Reach-in Freezers","31 - 50 cubic feet","Reach-in Freezers 31 - 50 cubic feet","RF3",12]
[null,null,null,null,null,null,null,null,null,null,null,null,null,null,null,null,null,null,null,null,null,null,null,null,null,null,null,null,"Reach-in Freezers","> 50 cubic feet","Reach-in Freezers > 50 cubic feet","RF4",{"$f":"VLOOKUP(AC33,$D$3:$E$22,2,FALSE)","v":12}]
[null,null,null,null,null,null,null,null,null,null,null,null,null,null,null,null,null,null,null,null,null,null,null,null,null,null,null,null,"Glass Door Reach-in Freezers","< 15 cubic feet",{"$f":"CONCATENATE(AC34, \" \",AD34)","v":"Glass Door Reach-in Freezers < 15 cubic feet"},"GDF1",{"$f":"VLOOKUP(AC34,$D$3:$E$22,2,FALSE)","v":12}]
[null,null,null,null,null,null,null,null,null,null,null,null,null,null,null,null,null,null,null,null,null,null,null,null,null,null,null,null,"Glass Door Reach-in Freezers","15 - 30 cubic feet","Glass Door Reach-in Freezers 15 - 30 cubic feet","GDF2",{"$f":"VLOOKUP(AC35,$D$3:$E$22,2,FALSE)","v":12}]
[null,null,null,null,null,null,null,null,null,null,null,null,null,null,null,null,null,null,null,null,null,null,null,null,null,null,null,null,"Glass Door Reach-in Freezers","31 - 50 cubic feet","Glass Door Reach-in Freezers 31 - 50 cubic feet","GDF3",{"$f":"VLOOKUP(AC36,$D$3:$E$22,2,FALSE)","v":12}]
[null,null,null,null,null,null,null,null,null,null,null,null,null,null,null,null,null,null,null,null,null,null,null,null,null,null,null,null,"Glass Door Reach-in Freezers","> 50 cubic feet","Glass Door Reach-in Freezers > 50 cubic feet","GDF4",12]
[null,null,null,null,null,null,null,null,null,null,null,null,null,null,null,null,null,null,null,null,null,null,null,null,null,null,null,null,"ECM (Coolers/Freezers)","Reach-in Cooler","ECM (Coolers/Freezers) Reach-in Cooler","ECMR1",{"$f":"VLOOKUP(AC38,$D$3:$E$22,2,FALSE)","v":10}]
[null,null,null,null,null,null,null,null,null,null,null,null,null,null,null,null,null,null,null,null,null,null,null,null,null,null,null,null,"ECM (Coolers/Freezers)","Reach-in Freezer","ECM (Coolers/Freezers) Reach-in Freezer","ECMR2",{"$f":"VLOOKUP(AC39,$D$3:$E$22,2,FALSE)","v":10}]
[null,null,null,null,null,null,null,null,null,null,null,null,null,null,null,null,null,null,null,null,null,null,null,null,null,null,null,null,"ECM (Coolers/Freezers)","Display Cooler","ECM (Coolers/Freezers) Display Cooler","ECMD1",{"$f":"VLOOKUP(AC40,$D$3:$E$22,2,FALSE)","v":10}]
[null,null,null,null,null,null,null,null,null,null,null,null,null,null,null,null,null,null,null,null,null,null,null,null,null,null,null,null,"ECM (Coolers/Freezers)","Display Freezer","ECM (Coolers/Freezers) Display Freezer","ECMD2",{"$f":"VLOOKUP(AC41,$D$3:$E$22,2,FALSE)","v":10}]
[null,null,null,null,null,null,null,null,null,null,null,null,null,null,null,null,null,null,null,null,null,null,null,null,null,null,null,null,"ECM (Coolers/Freezers)","Walk-in Cooler replacing PSC","ECM (Coolers/Freezers) Walk-in Cooler replacing PSC","ECMW1",{"$f":"VLOOKUP(AC42,$D$3:$E$22,2,FALSE)","v":10}]
[null,null,null,null,null,null,null,null,null,null,null,null,null,null,null,null,null,null,null,null,null,null,null,null,null,null,null,null,"ECM (Coolers/Freezers)","Walk-in Freezer replacing PSC","ECM (Coolers/Freezers) Walk-in Freezer replacing PSC","ECMW2",10]
[null,null,null,null,null,null,null,null,null,null,null,null,null,null,null,null,null,null,null,null,null,null,null,null,null,null,null,null,"ECM (Coolers/Freezers)","Walk-in Cooler replacing Shaded Poll","ECM (Coolers/Freezers) Walk-in Cooler replacing Shaded Poll","ECMW1",10]
[null,null,null,null,null,null,null,null,null,null,null,null,null,null,null,null,null,null,null,null,null,null,null,null,null,null,null,null,"ECM (Coolers/Freezers)","Walk-in Freezer replacing Shaded Poll","ECM (Coolers/Freezers) Walk-in Freezer replacing Shaded Poll","ECMW2",10]
[null,null,null,null,null,null,null,null,null,null,null,null,null,null,null,null,null,null,null,null,null,null,null,null,null,null,null,null,"Refrigeration Night Covers","Freezers","Refrigeration Night Covers Freezers","RNC1",{"$f":"VLOOKUP(AC46,$D$3:$E$22,2,FALSE)","v":5}]
[null,null,null,null,null,null,null,null,null,null,null,null,null,null,null,null,null,null,null,null,null,null,null,null,null,null,null,null,"Refrigeration Night Covers","Coolers","Refrigeration Night Covers Coolers","RNC2",{"$f":"VLOOKUP(AC47,$D$3:$E$22,2,FALSE)","v":5}]
[null,null,null,null,null,null,null,null,null,null,null,null,null,null,null,null,null,null,null,null,null,null,null,null,null,null,null,null,"LED Refrig Case Lighting","Freezers","LED Refrig Case Lighting Freezers","LEDRF",10]
[null,null,null,null,null,null,null,null,null,null,null,null,null,null,null,null,null,null,null,null,null,null,null,null,null,null,null,null,"LED Refrig Case Lighting","Coolers","LED Refrig Case Lighting Coolers","LEDRL",{"$f":"VLOOKUP(AC49,$D$3:$E$22,2,FALSE)","v":10}]
[null,null,null,null,null,null,null,null,null,null,null,null,null,null,null,null,null,null,null,null,null,null,null,null,null,null,null,null,"LED Refrig Case Lighting Controls","Freezers","LED Refrig Case Lighting Controls Freezers","LEDRC",{"$f":"VLOOKUP(AC50,$D$3:$E$22,2,FALSE)","v":10}]
[null,null,null,null,null,null,null,null,null,null,null,null,null,null,null,null,null,null,null,null,null,null,null,null,null,null,null,null,"LED Refrig Case Lighting Controls","Coolers","LED Refrig Case Lighting Controls Coolers","LEDRC",{"$f":"VLOOKUP(AC51,$D$3:$E$22,2,FALSE)","v":10}]
[null,null,null,null,null,null,null,null,null,null,null,null,null,null,null,null,null,null,null,null,null,null,null,null,null,null,null,null,"Anti-Sweat Heater Controls","Cooler Doors","Anti-Sweat Heater Controls Cooler Doors","ASCD",10]
[null,null,null,null,null,null,null,null,null,null,null,null,null,null,null,null,null,null,null,null,null,null,null,null,null,null,null,null,"Anti-Sweat Heater Controls","Freezer Doors","Anti-Sweat Heater Controls Freezer Doors","ASFD",10]
[null,null,null,null,null,null,null,null,null,null,null,null,null,null,null,null,null,null,null,null,null,null,null,null,null,null,null,null,"Vending Machine Controls","Refrigerated","Vending Machine Controls Refrigerated","VMC1",{"$f":"VLOOKUP(AC54,$D$3:$E$22,2,FALSE)","v":10}]
[null,null,null,null,null,null,null,null,null,null,null,null,null,null,null,null,null,null,null,null,null,null,null,null,null,null,null,null,"Vending Machine Controls","Non-Refrigerated","Vending Machine Controls Non-Refrigerated","VMC2",{"$f":"VLOOKUP(AC55,$D$3:$E$22,2,FALSE)","v":10}]
[null,null,null,null,null,null,null,null,null,null,null,null,null,null,null,null,null,null,null,null,null,null,null,null,null,null,null,null,"Personal Recept Occ Sensors","Power Strip with Occupancy Sensor","Personal Recept Occ Sensors Power Strip with Occupancy Sensor","PROS",{"$f":"VLOOKUP(AC56,$D$3:$E$22,2,FALSE)","v":10}]

{"sheet":"Lookups","index":10,"n_rows":83,"n_cols":21,"rows_kept":83,"cut":false,"hidden":true,"merged":[]}
[]
[null,null,null,"Units of Quantity",null,null,"Measure Type","Type/Size","Incentive","Concatanation","Incentive","kWh Savings","kW Savings","Hot holderVol. ","Source"]
[null,null,null,"Steam Cookers","Units",null,"Steam Cookers","3 Pan",800,{"$f":"G3&\"_\"&H3","v":"Steam Cookers_3 Pan"},{"$f":"I3","v":800},11188,2.5499999999999998,null,"2023 South Carolina Commercial Energy Algorithm Manual (CEAM) ",null,null,"95 Proposed","Wattage ","95 Existing","Wattage"]
[null,null,null,"Hot Holding Cabinets","Units",null,"Steam Cookers","4 pan",800,{"$f":"G4&\"_\"&H4","v":"Steam Cookers_4 pan"},{"$f":"I4","v":800},12459,2.85,null,"2023 South Carolina Commercial Energy Algorithm Manual (CEAM) ",null,null,"1LED028",28,"1F59SSE",60]
[null,null,null,"Fryers","Vats",null,"Steam Cookers","5 Pan",1200,"Steam Cookers_5 Pan",1200,13831,3.16,null,"2023 South Carolina Commercial Energy Algorithm Manual (CEAM) ",null,null,"1LED029",29,"1F80SSE",85]
[null,null,null,"Griddles","Units",null,"Steam Cookers","6 Pan",1200,"Steam Cookers_6 Pan",1200,15170,3.46,null,"2023 South Carolina Commercial Energy Algorithm Manual (CEAM) ",null,null,"1LED030",30,"1F96SSE",83]
[null,null,null,"Convection Ovens","Ovens",null,"Hot Holding Cabinets","Half Size",300,"Hot Holding Cabinets_Half Size",300,{"$f":"IF(AND('Equipment Input'!D23=\"Hot Holding Cabinets\",'Equipment Input'!E23=\"Half Size\"),((40*N7-(21.5*N7))*15*365/1000),\"\")","v":""},{"$f":"IF(AND('Equipment Input'!D23=\"Hot Holding Cabinets\",'Equipment Input'!E23=\"Half Size\"),L7/15/365,\"\")","v":""},{"$f":"IF(AND('Equipment Input'!D23=\"Hot Holding Cabinets\",'Equipment Input'!E23=\"Half Size\"),'Equipment Input'!H23,\"\")","v":""},"2023 South Carolina Commercial Energy Algorithm Manual (CEAM) ",null,null,"1LED031",31]
[null,null,null,"Combination Ovens","Units",null,"Hot Holding Cabinets","Half Size",300,"Hot Holding Cabinets_Half Size",300,{"$f":"IF(AND('Equipment Input'!D24=\"Hot Holding Cabinets\",'Equipment Input'!E24=\"Half Size\"),((40*N8-(21.5*N8))*15*365/1000),\"\")","v":""},{"$f":"IF(AND('Equipment Input'!D24=\"Hot Holding Cabinets\",'Equipment Input'!E24=\"Half Size\"),L8/15/365,\"\")","v":""},{"$f":"IF(AND('Equipment Input'!D24=\"Hot Holding Cabinets\",'Equipment Input'!E24=\"Half Size\"),'Equipment Input'!H24,\"\")","v":""},"2023 South Carolina Commercial Energy Algorithm Manual (CEAM) ",null,null,"1LED032",32]
[null,null,null,"Ice Machines Batch","Units",null,"Hot Holding Cabinets","Half Size",300,"Hot Holding Cabinets_Half Size",300,{"$f":"IF(AND('Equipment Input'!D25=\"Hot Holding Cabinets\",'Equipment Input'!E25=\"Half Size\"),((40*N9-(21.5*N9))*15*365/1000),\"\")","v":""},{"$f":"IF(AND('Equipment Input'!D25=\"Hot Holding Cabinets\",'Equipment Input'!E25=\"Half Size\"),L9/15/365,\"\")","v":""},{"$f":"IF(AND('Equipment Input'!D25=\"Hot Holding Cabinets\",'Equipment Input'!E25=\"Half Size\"),'Equipment Input'!H25,\"\")","v":""},"2023 South Carolina Commercial Energy Algorithm Manual (CEAM) ",null,null,"1LED033",33]
[null,null,null,"Ice Machines Continuous","Units",null,"Hot Holding Cabinets","Half Size",300,"Hot Holding Cabinets_Half Size",300,{"$f":"IF(AND('Equipment Input'!D26=\"Hot Holding Cabinets\",'Equipment Input'!E26=\"Half Size\"),((40*N10-(21.5*N10))*15*365/1000),\"\")","v":""},{"$f":"IF(AND('Equipment Input'!D26=\"Hot Holding Cabinets\",'Equipment Input'!E26=\"Half Size\"),L10/15/365,\"\")","v":""},{"$f":"IF(AND('Equipment Input'!D26=\"Hot Holding Cabinets\",'Equipment Input'!E26=\"Half Size\"),'Equipment Input'!H26,\"\")","v":""},"2023 South Carolina Commercial Energy Algorithm Manual (CEAM) ",null,null,"1LED034",34]
[null,null,null,"Reach-in Refrigerators","Units",null,"Hot Holding Cabinets","Half Size",300,"Hot Holding Cabinets_Half Size",300,{"$f":"IF(AND('Equipment Input'!D27=\"Hot Holding Cabinets\",'Equipment Input'!E27=\"Half Size\"),((40*N11-(21.5*N11))*15*365/1000),\"\")","v":""},{"$f":"IF(AND('Equipment Input'!D27=\"Hot Holding Cabinets\",'Equipment Input'!E27=\"Half Size\"),L11/15/365,\"\")","v":""},{"$f":"IF(AND('Equipment Input'!D27=\"Hot Holding Cabinets\",'Equipment Input'!E27=\"Half Size\"),'Equipment Input'!H27,\"\")","v":""},"2023 South Carolina Commercial Energy Algorithm Manual (CEAM) ",null,null,"1LED035",35]
[null,null,null,"Glass Door Reach-in Refrig","Units",null,"Hot Holding Cabinets","Half Size",300,"Hot Holding Cabinets_Half Size",300,{"$f":"IF(AND('Equipment Input'!D35=\"Hot Holding Cabinets\",'Equipment Input'!E35=\"Half Size\"),((40*N12-(21.5*N12))*15*365/1000),\"\")","v":""},{"$f":"IF(AND('Equipment Input'!D35=\"Hot Holding Cabinets\",'Equipment Input'!E35=\"Half Size\"),L12/15/365,\"\")","v":""},{"$f":"IF(AND('Equipment Input'!D35=\"Hot Holding Cabinets\",'Equipment Input'!E35=\"Half Size\"),'Equipment Input'!H35,\"\")","v":""},"2023 South Carolina Commercial Energy Algorithm Manual (CEAM) ",null,null,"1LED036",36]
[null,null,null,"Reach-in Freezers","Units",null,"Hot Holding Cabinets","Half Size",300,"Hot Holding Cabinets_Half Size",300,{"$f":"IF(AND('Equipment Input'!D39=\"Hot Holding Cabinets\",'Equipment Input'!E39=\"Half Size\"),((40*N13-(21.5*N13))*15*365/1000),\"\")","v":""},{"$f":"IF(AND('Equipment Input'!D39=\"Hot Holding Cabinets\",'Equipment Input'!E39=\"Half Size\"),L13/15/365,\"\")","v":""},{"$f":"IF(AND('Equipment Input'!D39=\"Hot Holding Cabinets\",'Equipment Input'!E39=\"Half Size\"),'Equipment Input'!H39,\"\")","v":""},"2023 South Carolina Commercial Energy Algorithm Manual (CEAM) ",null,null,"1LED037",37]
[null,null,null,"Glass Door Reach-in Freezers","Units",null,"Hot Holding Cabinets","Half Size",300,"Hot Holding Cabinets_Half Size",300,{"$f":"IF(AND('Equipment Input'!D40=\"Hot Holding Cabinets\",'Equipment Input'!E40=\"Half Size\"),((40*N14-(21.5*N14))*15*365/1000),\"\")","v":""},{"$f":"IF(AND('Equipment Input'!D40=\"Hot Holding Cabinets\",'Equipment Input'!E40=\"Half Size\"),L14/15/365,\"\")","v":""},{"$f":"IF(AND('Equipment Input'!D40=\"Hot Holding Cabinets\",'Equipment Input'!E40=\"Half Size\"),'Equipment Input'!H40,\"\")","v":""},"2023 South Carolina Commercial Energy Algorithm Manual (CEAM) ",null,null,"1LED038",38]
[null,null,null,"Clothes Washers","Units",null,"Hot Holding Cabinets","Half Size",300,"Hot Holding Cabinets_Half Size",300,{"$f":"IF(AND('Equipment Input'!D41=\"Hot Holding Cabinets\",'Equipment Input'!E41=\"Half Size\"),((40*N15-(21.5*N15))*15*365/1000),\"\")","v":""},{"$f":"IF(AND('Equipment Input'!D41=\"Hot Holding Cabinets\",'Equipment Input'!E41=\"Half Size\"),L15/15/365,\"\")","v":""},{"$f":"IF(AND('Equipment Input'!D41=\"Hot Holding Cabinets\",'Equipment Input'!E41=\"Half Size\"),'Equipment Input'!H41,\"\")","v":""},"2023 South Carolina Commercial Energy Algorithm Manual (CEAM) ",null,null,"1LED039",39]
[null,null,null,"Anti-Sweat Heater Controls","Doors",null,"Hot Holding Cabinets","Half Size",300,"Hot Holding Cabinets_Half Size",300,{"$f":"IF(AND('Equipment Input'!D42=\"Hot Holding Cabinets\",'Equipment Input'!E42=\"Half Size\"),((40*N16-(21.5*N16))*15*365/1000),\"\")","v":""},{"$f":"IF(AND('Equipment Input'!D42=\"Hot Holding Cabinets\",'Equipment Input'!E42=\"Half Size\"),L16/15/365,\"\")","v":""},{"$f":"IF(AND('Equipment Input'!D42=\"Hot Holding Cabinets\",'Equipment Input'!E42=\"Half Size\"),'Equipment Input'!H42,\"\")","v":""},"2023 South Carolina Commercial Energy Algorithm Manual (CEAM) ",null,null,"1LED040",40]
[null,null,null,"ECM (Coolers/Freezers)","Units",null,"Hot Holding Cabinets","3/4 Size",400,{"$f":"G17&\"_\"&H17","v":"Hot Holding Cabinets_3/4 Size"},{"$f":"I17","v":400},{"$f":"IF(AND('Equipment Input'!D23=\"Hot Holding Cabinets\",'Equipment Input'!E23=\"3/4 Size\"),((40*N17)-(2*N17+254))*15*365/1000,\"\")","v":""},{"$f":"IF(AND('Equipment Input'!D23=\"Hot Holding Cabinets\",'Equipment Input'!E23=\"3/4 Size\"),L17/15/365,\"\")","v":""},{"$f":"IF(AND('Equipment Input'!D23=\"Hot Holding Cabinets\",'Equipment Input'!E23=\"3/4 Size\"),'Equipment Input'!H23,\"\")","v":""},"2023 South Carolina Commercial Energy Algorithm Manual (CEAM) ",null,null,"1LED041",41]
[null,null,null,"Refrigeration Night Covers","Linear Feet",null,"Hot Holding Cabinets","3/4 Size",400,{"$f":"G18&\"_\"&H18","v":"Hot Holding Cabinets_3/4 Size"},{"$f":"I18","v":400},{"$f":"IF(AND('Equipment Input'!D24=\"Hot Holding Cabinets\",'Equipment Input'!E24=\"3/4 Size\"),((40*N18)-(2*N18+254))*15*365/1000,\"\")","v":""},{"$f":"IF(AND('Equipment Input'!D24=\"Hot Holding Cabinets\",'Equipment Input'!E24=\"3/4 Size\"),L18/15/365,\"\")","v":""},{"$f":"IF(AND('Equipment Input'!D24=\"Hot Holding Cabinets\",'Equipment Input'!E24=\"3/4 Size\"),'Equipment Input'!H24,\"\")","v":""},"2023 South Carolina Commercial Energy Algorithm Manual (CEAM) "]
[null,null,null,"LED Refrig Case Lighting","Doors",null,"Hot Holding Cabinets","3/4 Size",400,"Hot Holding Cabinets_3/4 Size",400,{"$f":"IF(AND('Equipment Input'!D25=\"Hot Holding Cabinets\",'Equipment Input'!E25=\"3/4 Size\"),((40*N19)-(2*N19+254))*15*365/1000,\"\")","v":""},{"$f":"IF(AND('Equipment Input'!D25=\"Hot Holding Cabinets\",'Equipment Input'!E25=\"3/4 Size\"),L19/15/365,\"\")","v":""},{"$f":"IF(AND('Equipment Input'!D25=\"Hot Holding Cabinets\",'Equipment Input'!E25=\"3/4 Size\"),'Equipment Input'!H25,\"\")","v":""},"2023 South Carolina Commercial Energy Algorithm Manual (CEAM) "]
[null,null,null,"LED Refrig Case Lighting Controls","Doors",null,"Hot Holding Cabinets","3/4 Size",400,"Hot Holding Cabinets_3/4 Size",400,{"$f":"IF(AND('Equipment Input'!D26=\"Hot Holding Cabinets\",'Equipment Input'!E26=\"3/4 Size\"),((40*N20)-(2*N20+254))*15*365/1000,\"\")","v":""},{"$f":"IF(AND('Equipment Input'!D26=\"Hot Holding Cabinets\",'Equipment Input'!E26=\"3/4 Size\"),L20/15/365,\"\")","v":""},{"$f":"IF(AND('Equipment Input'!D26=\"Hot Holding Cabinets\",'Equipment Input'!E26=\"3/4 Size\"),'Equipment Input'!H26,\"\")","v":""},"2023 South Carolina Commercial Energy Algorithm Manual (CEAM) "]
[null,null,null,null,null,null,"Hot Holding Cabinets","3/4 Size",400,"Hot Holding Cabinets_3/4 Size",400,{"$f":"IF(AND('Equipment Input'!D27=\"Hot Holding Cabinets\",'Equipment Input'!E27=\"3/4 Size\"),((40*N21)-(2*N21+254))*15*365/1000,\"\")","v":""},{"$f":"IF(AND('Equipment Input'!D27=\"Hot Holding Cabinets\",'Equipment Input'!E27=\"3/4 Size\"),L21/15/365,\"\")","v":""},{"$f":"IF(AND('Equipment Input'!D27=\"Hot Holding Cabinets\",'Equipment Input'!E27=\"3/4 Size\"),'Equipment Input'!H27,\"\")","v":""},"2023 South Carolina Commercial Energy Algorithm Manual (CEAM) "]
[null,null,null,null,null,null,"Hot Holding Cabinets","3/4 Size",400,"Hot Holding Cabinets_3/4 Size",400,{"$f":"IF(AND('Equipment Input'!D35=\"Hot Holding Cabinets\",'Equipment Input'!E35=\"3/4 Size\"),((40*N22)-(2*N22+254))*15*365/1000,\"\")","v":""},{"$f":"IF(AND('Equipment Input'!D35=\"Hot Holding Cabinets\",'Equipment Input'!E35=\"3/4 Size\"),L22/15/365,\"\")","v":""},{"$f":"IF(AND('Equipment Input'!D35=\"Hot Holding Cabinets\",'Equipment Input'!E35=\"3/4 Size\"),'Equipment Input'!H35,\"\")","v":""},"2023 South Carolina Commercial Energy Algorithm Manual (CEAM) "]
[null,null,null,null,null,null,"Hot Holding Cabinets","3/4 Size",400,"Hot Holding Cabinets_3/4 Size",400,{"$f":"IF(AND('Equipment Input'!D39=\"Hot Holding Cabinets\",'Equipment Input'!E39=\"3/4 Size\"),((40*N23)-(2*N23+254))*15*365/1000,\"\")","v":""},{"$f":"IF(AND('Equipment Input'!D39=\"Hot Holding Cabinets\",'Equipment Input'!E39=\"3/4 Size\"),L23/15/365,\"\")","v":""},{"$f":"IF(AND('Equipment Input'!D39=\"Hot Holding Cabinets\",'Equipment Input'!E39=\"3/4 Size\"),'Equipment Input'!H39,\"\")","v":""},"2023 South Carolina Commercial Energy Algorithm Manual (CEAM) "]
[null,null,null,null,null,null,"Hot Holding Cabinets","3/4 Size",400,"Hot Holding Cabinets_3/4 Size",400,{"$f":"IF(AND('Equipment Input'!D40=\"Hot Holding Cabinets\",'Equipment Input'!E40=\"3/4 Size\"),((40*N24)-(2*N24+254))*15*365/1000,\"\")","v":""},{"$f":"IF(AND('Equipment Input'!D40=\"Hot Holding Cabinets\",'Equipment Input'!E40=\"3/4 Size\"),L24/15/365,\"\")","v":""},{"$f":"IF(AND('Equipment Input'!D40=\"Hot Holding Cabinets\",'Equipment Input'!E40=\"3/4 Size\"),'Equipment Input'!H40,\"\")","v":""},"2023 South Carolina Commercial Energy Algorithm Manual (CEAM) "]
[null,null,null,null,null,null,"Hot Holding Cabinets","3/4 Size",400,"Hot Holding Cabinets_3/4 Size",400,{"$f":"IF(AND('Equipment Input'!D41=\"Hot Holding Cabinets\",'Equipment Input'!E41=\"3/4 Size\"),((40*N25)-(2*N25+254))*15*365/1000,\"\")","v":""},{"$f":"IF(AND('Equipment Input'!D41=\"Hot Holding Cabinets\",'Equipment Input'!E41=\"3/4 Size\"),L25/15/365,\"\")","v":""},{"$f":"IF(AND('Equipment Input'!D41=\"Hot Holding Cabinets\",'Equipment Input'!E41=\"3/4 Size\"),'Equipment Input'!H41,\"\")","v":""},"2023 South Carolina Commercial Energy Algorithm Manual (CEAM) "]
[null,null,null,null,null,null,"Hot Holding Cabinets","3/4 Size",400,"Hot Holding Cabinets_3/4 Size",400,{"$f":"IF(AND('Equipment Input'!D42=\"Hot Holding Cabinets\",'Equipment Input'!E42=\"3/4 Size\"),((40*N26)-(2*N26+254))*15*365/1000,\"\")","v":""},{"$f":"IF(AND('Equipment Input'!D42=\"Hot Holding Cabinets\",'Equipment Input'!E42=\"3/4 Size\"),L26/15/365,\"\")","v":""},{"$f":"IF(AND('Equipment Input'!D42=\"Hot Holding Cabinets\",'Equipment Input'!E42=\"3/4 Size\"),'Equipment Input'!H42,\"\")","v":""},"2023 South Carolina Commercial Energy Algorithm Manual (CEAM) "]
[null,null,null,null,null,null,"Hot Holding Cabinets","Full Size",500,{"$f":"G27&\"_\"&H27","v":"Hot Holding Cabinets_Full Size"},{"$f":"I27","v":500},{"$f":"IF(AND('Equipment Input'!D23=\"Hot Holding Cabinets\",'Equipment Input'!E23=\"Full Size\"),((40*N27)-(3.8*N27+203.5))*15*365/1000,\"\")","v":""},{"$f":"IF(AND('Equipment Input'!D23=\"Hot Holding Cabinets\",'Equipment Input'!E23=\"Full Size\"),L27/15/365,\"\")","v":""},{"$f":"IF(AND('Equipment Input'!D23=\"Hot Holding Cabinets\",'Equipment Input'!E23=\"Full Size\"),'Equipment Input'!H23,\"\")","v":""},"2023 South Carolina Commercial Energy Algorithm Manual (CEAM) "]
[null,null,null,null,null,null,"Hot Holding Cabinets","Full Size",500,{"$f":"G28&\"_\"&H28","v":"Hot Holding Cabinets_Full Size"},{"$f":"I28","v":500},{"$f":"IF(AND('Equipment Input'!D24=\"Hot Holding Cabinets\",'Equipment Input'!E24=\"Full Size\"),((40*N28)-(3.8*N28+203.5))*15*365/1000,\"\")","v":""},{"$f":"IF(AND('Equipment Input'!D24=\"Hot Holding Cabinets\",'Equipment Input'!E24=\"Full Size\"),L28/15/365,\"\")","v":""},{"$f":"IF(AND('Equipment Input'!D24=\"Hot Holding Cabinets\",'Equipment Input'!E24=\"Full Size\"),'Equipment Input'!H24,\"\")","v":""},"2023 South Carolina Commercial Energy Algorithm Manual (CEAM) "]
[null,null,null,null,null,null,"Hot Holding Cabinets","Full Size",500,"Hot Holding Cabinets_Full Size",500,{"$f":"IF(AND('Equipment Input'!D25=\"Hot Holding Cabinets\",'Equipment Input'!E25=\"Full Size\"),((40*N29)-(3.8*N29+203.5))*15*365/1000,\"\")","v":""},{"$f":"IF(AND('Equipment Input'!D25=\"Hot Holding Cabinets\",'Equipment Input'!E25=\"Full Size\"),L29/15/365,\"\")","v":""},{"$f":"IF(AND('Equipment Input'!D25=\"Hot Holding Cabinets\",'Equipment Input'!E25=\"Full Size\"),'Equipment Input'!H25,\"\")","v":""},"2023 South Carolina Commercial Energy Algorithm Manual (CEAM) "]
[null,null,null,"Vending Machine Controls","Units",null,"Hot Holding Cabinets","Full Size",500,"Hot Holding Cabinets_Full Size",500,{"$f":"IF(AND('Equipment Input'!D26=\"Hot Holding Cabinets\",'Equipment Input'!E26=\"Full Size\"),((40*N30)-(3.8*N30+203.5))*15*365/1000,\"\")","v":""},{"$f":"IF(AND('Equipment Input'!D26=\"Hot Holding Cabinets\",'Equipment Input'!E26=\"Full Size\"),L30/15/365,\"\")","v":""},{"$f":"IF(AND('Equipment Input'!D26=\"Hot Holding Cabinets\",'Equipment Input'!E26=\"Full Size\"),'Equipment Input'!H26,\"\")","v":""},"2023 South Carolina Commercial Energy Algorithm Manual (CEAM) "]
[null,null,null,"Personal Recept Occ Sensors","Controls",null,"Hot Holding Cabinets","Full Size",500,"Hot Holding Cabinets_Full Size",500,{"$f":"IF(AND('Equipment Input'!D27=\"Hot Holding Cabinets\",'Equipment Input'!E27=\"Full Size\"),((40*N31)-(3.8*N31+203.5))*15*365/1000,\"\")","v":""},{"$f":"IF(AND('Equipment Input'!D27=\"Hot Holding Cabinets\",'Equipment Input'!E27=\"Full Size\"),L31/15/365,\"\")","v":""},{"$f":"IF(AND('Equipment Input'!D27=\"Hot Holding Cabinets\",'Equipment Input'!E27=\"Full Size\"),'Equipment Input'!H27,\"\")","v":""},"2023 South Carolina Commercial Energy Algorithm Manual (CEAM) "]
[null,null,null,null,null,null,"Hot Holding Cabinets","Full Size",500,"Hot Holding Cabinets_Full Size",500,{"$f":"IF(AND('Equipment Input'!D35=\"Hot Holding Cabinets\",'Equipment Input'!E35=\"Full Size\"),((40*N32)-(3.8*N32+203.5))*15*365/1000,\"\")","v":""},{"$f":"IF(AND('Equipment Input'!D35=\"Hot Holding Cabinets\",'Equipment Input'!E35=\"Full Size\"),L32/15/365,\"\")","v":""},{"$f":"IF(AND('Equipment Input'!D35=\"Hot Holding Cabinets\",'Equipment Input'!E35=\"Full Size\"),'Equipment Input'!H35,\"\")","v":""},"2023 South Carolina Commercial Energy Algorithm Manual (CEAM) "]
[null,null,null,null,null,null,"Hot Holding Cabinets","Full Size",500,"Hot Holding Cabinets_Full Size",500,{"$f":"IF(AND('Equipment Input'!D39=\"Hot Holding Cabinets\",'Equipment Input'!E39=\"Full Size\"),((40*N33)-(3.8*N33+203.5))*15*365/1000,\"\")","v":""},{"$f":"IF(AND('Equipment Input'!D39=\"Hot Holding Cabinets\",'Equipment Input'!E39=\"Full Size\"),L33/15/365,\"\")","v":""},{"$f":"IF(AND('Equipment Input'!D39=\"Hot Holding Cabinets\",'Equipment Input'!E39=\"Full Size\"),'Equipment Input'!H39,\"\")","v":""},"2023 South Carolina Commercial Energy Algorithm Manual (CEAM) "]
[null,null,null,null,null,null,"Hot Holding Cabinets","Full Size",500,"Hot Holding Cabinets_Full Size",500,{"$f":"IF(AND('Equipment Input'!D40=\"Hot Holding Cabinets\",'Equipment Input'!E40=\"Full Size\"),((40*N34)-(3.8*N34+203.5))*15*365/1000,\"\")","v":""},{"$f":"IF(AND('Equipment Input'!D40=\"Hot Holding Cabinets\",'Equipment Input'!E40=\"Full Size\"),L34/15/365,\"\")","v":""},{"$f":"IF(AND('Equipment Input'!D40=\"Hot Holding Cabinets\",'Equipment Input'!E40=\"Full Size\"),'Equipment Input'!H40,\"\")","v":""},"2023 South Carolina Commercial Energy Algorithm Manual (CEAM) "]
[null,null,null,null,null,null,"Hot Holding Cabinets","Full Size",500,"Hot Holding Cabinets_Full Size",500,{"$f":"IF(AND('Equipment Input'!D41=\"Hot Holding Cabinets\",'Equipment Input'!E41=\"Full Size\"),((40*N35)-(3.8*N35+203.5))*15*365/1000,\"\")","v":""},{"$f":"IF(AND('Equipment Input'!D41=\"Hot Holding Cabinets\",'Equipment Input'!E41=\"Full Size\"),L35/15/365,\"\")","v":""},{"$f":"IF(AND('Equipment Input'!D41=\"Hot Holding Cabinets\",'Equipment Input'!E41=\"Full Size\"),'Equipment Input'!H41,\"\")","v":""},"2023 South Carolina Commercial Energy Algorithm Manual (CEAM) "]
[null,null,null,null,null,null,"Hot Holding Cabinets","Full Size",500,"Hot Holding Cabinets_Full Size",500,{"$f":"IF(AND('Equipment Input'!D42=\"Hot Holding Cabinets\",'Equipment Input'!E42=\"Full Size\"),((40*N36)-(3.8*N36+203.5))*15*365/1000,\"\")","v":""},{"$f":"IF(AND('Equipment Input'!D42=\"Hot Holding Cabinets\",'Equipment Input'!E42=\"Full Size\"),L36/15/365,\"\")","v":""},{"$f":"IF(AND('Equipment Input'!D42=\"Hot Holding Cabinets\",'Equipment Input'!E42=\"Full Size\"),'Equipment Input'!H42,\"\")","v":""},"2023 South Carolina Commercial Energy Algorithm Manual (CEAM) "]
[null,null,null,null,null,null,"Fryers","Large Vat",300,"Fryers_Large Vat",300,2536,0.57999999999999996,null,"2023 South Carolina Commercial Energy Algorithm Manual (CEAM) "]
[null,null,null,null,null,null,"Griddles","All",300,{"$f":"G38&\"_\"&H38","v":"Griddles_All"},300,1907,0.44,null,"2023 South Carolina Commercial Energy Algorithm Manual (CEAM) "]
[null,null,null,null,null,null,"Convection Ovens","All",400,"Convection Ovens_All",400,1937,0.44,null,"2023 South Carolina Commercial Energy Algorithm Manual (CEAM) "]
[null,null,null,null,null,null,"Combination Ovens","All",1000,"Combination Ovens_All",1000,6368,1.45,null,"2023 South Carolina Commercial Energy Algorithm Manual (CEAM) "]
[null,null,null,null,null,null,"Ice Machines Batch","Ice Making Head",150,"Ice Machines Batch_Ice Making Head",150,1247,0.19,null,"2023 South Carolina Commercial Energy Algorithm Manual (CEAM) "]
[null,null,null,null,null,null,"Ice Machines Batch","Split System",100,"Ice Machines Batch_Split System",100,1181,0.18,null,"2023 South Carolina Commercial Energy Algorithm Manual (CEAM) "]
[null,null,null,null,null,null,"Ice Machines Batch","Self-Contained",50,"Ice Machines Batch_Self-Contained",{"$f":"I43","v":50},384,0.06,null,"2023 South Carolina Commercial Energy Algorithm Manual (CEAM) "]
[null,null,null,null,null,null,"Ice Machines Continuous","Ice Making Head",125,"Ice Machines Continuous_Ice Making Head",125,1862,0.28000000000000003,null,"2023 South Carolina Commercial Energy Algorithm Manual (CEAM) "]
[null,null,null,null,null,null,"Ice Machines Continuous","Split System",150,{"$f":"G45&\"_\"&H45","v":"Ice Machines Continuous_Split System"},150,2242,0.34,null,"2023 South Carolina Commercial Energy Algorithm Manual (CEAM) "]
[null,null,null,null,null,null,"Ice Machines Continuous","Self-Contained",75,"Ice Machines Continuous_Self-Contained",75,394,0.06,null,"2023 South Carolina Commercial Energy Algorithm Manual (CEAM) "]
[null,null,null,null,null,null,"Reach-in Refrigerators","< 15 cubic feet",20,"Reach-in Refrigerators_< 15 cubic feet",20,453,5.1999999999999998E-2,null,"2023 South Carolina Commercial Energy Algorithm Manual (CEAM) "]
[null,null,null,null,null,null,"Reach-in Refrigerators","15 - 30 cubic feet",30,"Reach-in Refrigerators_15 - 30 cubic feet",30,626,7.0999999999999994E-2,null,"2023 South Carolina Commercial Energy Algorithm Manual (CEAM) "]
[null,null,null,null,null,null,"Reach-in Refrigerators","31 - 50 cubic feet",50,"Reach-in Refrigerators_31 - 50 cubic feet",50,982,0.112,null,"2023 South Carolina Commercial Energy Algorithm Manual (CEAM) "]
[null,null,null,null,null,null,"Reach-in Refrigerators","> 50 cubic feet",100,"Reach-in Refrigerators_> 50 cubic feet",100,1456,0.16600000000000001,null,"2023 South Carolina Commercial Energy Algorithm Manual (CEAM) "]
[null,null,null,null,null,null,"Glass Door Reach-in Refrig","< 15 cubic feet",55,"Glass Door Reach-in Refrig_< 15 cubic feet",55,453,5.1999999999999998E-2,null,"2023 South Carolina Commercial Energy Algorithm Manual (CEAM) "]
[null,null,null,null,null,null,"Glass Door Reach-in Refrig","15 - 30 cubic feet",55,"Glass Door Reach-in Refrig_15 - 30 cubic feet",55,856,9.8000000000000004E-2,null,"2023 South Carolina Commercial Energy Algorithm Manual (CEAM) "]
[null,null,null,null,null,null,"Glass Door Reach-in Refrig","31 - 50 cubic feet",75,"Glass Door Reach-in Refrig_31 - 50 cubic feet",75,993,0.113,null,"2023 South Carolina Commercial Energy Algorithm Manual (CEAM) "]
[null,null,null,null,null,null,"Glass Door Reach-in Refrig","> 50 cubic feet",100,"Glass Door Reach-in Refrig_> 50 cubic feet",100,1358,0.155,null,"2023 South Carolina Commercial Energy Algorithm Manual (CEAM) "]
[null,null,null,null,null,null,"Reach-in Freezers","< 15 cubic feet",50,"Reach-in Freezers_< 15 cubic feet",50,485,5.5E-2,null,"2023 South Carolina Commercial Energy Algorithm Manual (CEAM) "]
[null,null,null,null,null,null,"Reach-in Freezers","15 - 30 cubic feet",75,"Reach-in Freezers_15 - 30 cubic feet",75,1307,0.14899999999999999,null,"2023 South Carolina Commercial Energy Algorithm Manual (CEAM) "]
[null,null,null,null,null,null,"Reach-in Freezers","31 - 50 cubic feet",125,"Reach-in Freezers_31 - 50 cubic feet",125,2402,0.27400000000000002,null,"2023 South Carolina Commercial Energy Algorithm Manual (CEAM) "]
[null,null,null,null,null,null,"Reach-in Freezers","> 50 cubic feet",175,"Reach-in Freezers_> 50 cubic feet",175,3898,0.44500000000000001,null,"2023 South Carolina Commercial Energy Algorithm Manual (CEAM) "]
[null,null,null,null,null,null,"Glass Door Reach-in Freezers","< 15 cubic feet",75,"Glass Door Reach-in Freezers_< 15 cubic feet",75,485,5.5E-2,null,"2023 South Carolina Commercial Energy Algorithm Manual (CEAM) "]
[null,null,null,null,null,null,"Glass Door Reach-in Freezers","15 - 30 cubic feet",100,"Glass Door Reach-in Freezers_15 - 30 cubic feet",{"$f":"I60","v":100},3185,0.36299999999999999,null,"2023 South Carolina Commercial Energy Algorithm Manual (CEAM) "]
[null,null,null,null,null,null,"Glass Door Reach-in Freezers","31 - 50 cubic feet",150,"Glass Door Reach-in Freezers_31 - 50 cubic feet",150,5147,0.58699999999999997,null,"2023 South Carolina Commercial Energy Algorithm Manual (CEAM) "]
[null,null,null,null,null,null,"Glass Door Reach-in Freezers","> 50 cubic feet",200,"Glass Door Reach-in Freezers_> 50 cubic feet",200,7450,0.85,null,"2023 South Carolina Commercial Energy Algorithm Manual (CEAM) "]
[null,null,null,null,null,null,"Clothes Washers","Electric water heater",50,"Clothes Washers_Electric water heater",50,456,0,null,"2023 South Carolina Commercial Energy Algorithm Manual (CEAM) "]
[null,null,null,null,null,null,"Clothes Washers","Non-electric water heater",50,"Clothes Washers_Non-electric water heater",50,91,0,null,"2023 South Carolina Commercial Energy Algorithm Manual (CEAM) "]
[null,null,null,null,null,null,"Anti-Sweat Heater Controls","Cooler Doors",50,"Anti-Sweat Heater Controls_Cooler Doors",50,{"$f":"0.13*(90.7%-42.8%)*8766*1.25","v":682.32352500000002},{"$f":"0.13*(90.7%-42.8%)*1.25*0.36","v":2.8021500000000001E-2},null,"2023 South Carolina Commercial Energy Algorithm Manual (CEAM) "]
[null,null,null,null,null,null,"Anti-Sweat Heater Controls","Freezer Doors",50,"Anti-Sweat Heater Controls_Freezer Doors",50,{"$f":"0.13*(90.7%-42.8%)*8276*1.5","v":773.01978000000008},{"$f":"0.13*(90.7%-42.8%)*1.5*0.3","v":2.8021500000000005E-2},null,"2023 South Carolina Commercial Energy Algorithm Manual (CEAM) "]
[null,null,null,null,null,null,"ECM (Coolers/Freezers)","Walk-in Cooler replacing PSC",35,{"$f":"G67&\"_\"&H67","v":"ECM (Coolers/Freezers)_Walk-in Cooler replacing PSC"},50,1016,0.12,null,"2023 South Carolina Commercial Energy Algorithm Manual (CEAM) "]
[null,null,null,null,null,null,"ECM (Coolers/Freezers)","Walk-in Freezer replacing PSC",35,{"$f":"G68&\"_\"&H68","v":"ECM (Coolers/Freezers)_Walk-in Freezer replacing PSC"},50,1213,0.15,null,"2023 South Carolina Commercial Energy Algorithm Manual (CEAM) "]
[null,null,null,null,null,null,"ECM (Coolers/Freezers)","Walk-in Cooler replacing Shaded Poll",35,"ECM (Coolers/Freezers)_Walk-in Cooler replacing Shaded Poll",100,1016,0.12,null,"2023 South Carolina Commercial Energy Algorithm Manual (CEAM) "]
[null,null,null,null,null,null,"ECM (Coolers/Freezers)","Walk-in Freezer replacing Shaded Poll",35,"ECM (Coolers/Freezers)_Walk-in Freezer replacing Shaded Poll",100,1213,0.15,null,"2023 South Carolina Commercial Energy Algorithm Manual (CEAM) "]
[null,null,null,null,null,null,"ECM (Coolers/Freezers)","Reach-in Cooler",35,"ECM (Coolers/Freezers)_Reach-in Cooler",35,331,0.04,null,"2023 South Carolina Commercial Energy Algorithm Manual (CEAM) "]
[null,null,null,null,null,null,"ECM (Coolers/Freezers)","Reach-in Freezer",35,"ECM (Coolers/Freezers)_Reach-in Freezer",35,395,0.05,null,"2023 South Carolina Commercial Energy Algorithm Manual (CEAM) "]
[null,null,null,null,null,null,"ECM (Coolers/Freezers)","Display Cooler",35,"ECM (Coolers/Freezers)_Display Cooler",35,331,0.04,null,"2023 South Carolina Commercial Energy Algorithm Manual (CEAM) "]
[null,null,null,null,null,null,"ECM (Coolers/Freezers)","Display Freezer",35,"ECM (Coolers/Freezers)_Display Freezer",35,395,0.05,null,"2023 South Carolina Commercial Energy Algorithm Manual (CEAM) "]
[null,null,null,null,null,null,"Refrigeration Night Covers","Freezers",5,"Refrigeration Night Covers_Freezers",5,252,0,null,"2023 South Carolina Commercial Energy Algorithm Manual (CEAM) "]
[null,null,null,null,null,null,"Refrigeration Night Covers","Coolers",5,"Refrigeration Night Covers_Coolers",5,139,0,null,"2023 South Carolina Commercial Energy Algorithm Manual (CEAM) "]
[null,null,null,null,null,null,"LED Refrig Case Lighting","Coolers",25,"LED Refrig Case Lighting_Coolers",25,null,null,null,"2023 South Carolina Commercial Energy Algorithm Manual (CEAM) - Calc Embedded into Inputs"]
[null,null,null,null,null,null,"LED Refrig Case Lighting","Freezers",25,"LED Refrig Case Lighting_Freezers",25,null,null,null,"2023 South Carolina Commercial Energy Algorithm Manual (CEAM) - Calc Embedded into Inputs"]
[null,null,null,null,null,null,"LED Refrig Case Lighting Controls","Coolers",5,"LED Refrig Case Lighting Controls_Coolers",5,null,null,null,"2023 South Carolina Commercial Energy Algorithm Manual (CEAM) - Calc Embedded into Inputs"]
[null,null,null,null,null,null,"LED Refrig Case Lighting Controls","Freezers",5,"LED Refrig Case Lighting Controls_Freezers",5,null,null,null,"2023 South Carolina Commercial Energy Algorithm Manual (CEAM) - Calc Embedded into Inputs"]
[null,null,null,null,null,null,"Vending Machine Controls","Refrigerated",20,"Vending Machine Controls_Refrigerated",20,1613,0,null,"2023 South Carolina Commercial Energy Algorithm Manual (CEAM) - Calc Embedded into Inputs"]
[null,null,null,null,null,null,"Vending Machine Controls","Non-Refrigerated",10,"Vending Machine Controls_Non-Refrigerated",10,343,0,null,"2023 South Carolina Commercial Energy Algorithm Manual (CEAM) - Calc Embedded into Inputs"]
[null,null,null,null,null,null,"Personal Recept Occ Sensors","Power Strip with Occupancy Sensor",5,"Personal Recept Occ Sensors_Power Strip with Occupancy Sensor",5,43,0,null,"2023 South Carolina Commercial Energy Algorithm Manual (CEAM) - Calc Embedded into Inputs"]

{"sheet":"Version Tracking","index":11,"n_rows":33,"n_cols":5,"rows_kept":33,"cut":false,"hidden":true,"merged":[]}
[]
[]
[]
[null,"Current:",{"$f":"LOOKUP(2,1/(B1:B50001<>\"\"),B1:B50001)","v":15.1}]
[null,"Version","Notes","Date","Updated By"]
[null,"1.0","Initial creation of Food Service and High-Efficiency Equipment tool for SCANA.","2011-04-11","Drew Durkee"]
[null,"1.1","modify measure name length to fit vision number of character requirement","2011-04-15","O'Neil Morgan"]
[null,"1.2","modify measure name length to fit vision number of character requirement","2011-04-19","O'Neil Morgan"]
[null,"1.3","CREATE MEASURE CODE ","2011-05-05","O'Neil Morgan"]
[null,"1.4","update aeg tab","2011-05-26","O'Neil Morgan"]
[null,1.5,"updated EULs to align with BGE program","2011-07-05","Charlie Haack"]
[null,1.6,"Removed extra space from G45 and G46 of 'Lookups' tab","2011-07-19","Charlie Haack"]
[null,1.7,"add a space between LED Refrig and Case Lighting on the validation tab","2011-09-01","O'Neil Morgan"]
[null,1.8,"convert watts to kw for the LED Refrig and Case Lighting measure","2011-09-23","O'Neil Morgan"]
[null,1.9,"made adjustment to AEG tab so that savings are reported on a per unit basis","2011-10-20","O'Neil Morgan"]
[null,2,"Remove commas from validation tab info","2011-10-25","Colin Odell"]
[null,2.1,"made adjustment to kWsavings for ECM motor measure ","2012-01-17","O'Neil Morgan"]
[null,2.2000000000000002,"CEE Ice machine update","2012-02-25","CGO"]
[null,2.2999999999999998,"CEE Ice machine update","2012-05-30","O'Neil Morgan"]
[null,2.4,"Made adjustments for ECM in refrigeration cases and LED in reach in cases per ODC Instructions and SCEG Approval","2012-12-06","Drew Durkee"]
[null,2.5,"Adjusted the measure code for ice m/c to match the vision codes","2013-06-10","O'Neil Morgan"]
[null,3,"update saving to match SC Energy Algorithm Manual","2016-06-27","O'Neil Morgan"]
[null,3.2,"update aeg tab and input sheet"]
[null,3.3,"Adjusted the measure code for Refrig lighting ","2017-01-05","O'Neil Morgan"]
[null,3.4,"Add GDF IN VALIDATION TAB","2017-01-11","O'Neil Morgan"]
[null,3.5,"update increase incentives for 2017","2017-01-18","O'Neil Morgan"]
[null,3.6,"updated other incentives for 2017","2017-08-17","Rick Campana"]
[null,3.7,"Fixed errors related to hot holding cabinets and clothes washers","2017-10-11","Rick Campana"]
[null,3.8,"Updated savings calculations for case lighting & controls","2019-01-18","Rick Campana"]
[null,14.1,"QC'ed the measures with 2023 CEAM and have updated the numbers for Anti-Sweat Heater Controls and updated the Waste heat factor associated with LED Refrigerated Case Lighting for both cooler and freezer","2023-07-12","Thomaskutty Jaison"]
[null,14.2,"Added Glass Door Freezers to the Measure Type table on Validation Tab for AEG export","2024-02-23","Liv Stewart"]
[null,14.3,"Combined Application and Worksheet into 1 document","2024-03-28","Liv Stewart"]
[null,15.1,"Updated format for user experience, added in Calculator_Version attribute, and updated returned errors in AEG import tab, as Vision no longer accepts #Error values.","2025-02-26","Liv Stewart"]

{"sheet":"AEG Import","index":12,"n_rows":21,"n_cols":27,"rows_kept":21,"cut":false,"hidden":true,"merged":[]}
["Measure #","Import?","building_type_sel","Customer_refID","Elec_Util_cust_Incentive","Incentive_Per_Unit","Install_Type_sel","kW_Impact","kW_Summer_Gross","kW_Summer_Net","kw_ton_IPLV","kw_ton_peak","KW_WINTER_1",null,"kWh_Gross","kWh_Impact","kWh_Net","Manufacturer","Measure_Life","Meets_building_code_sel","MEF","Model","Motor_Enclosure_Type_sel","name","quantity","CALCULATOR_VERSION","Type"]
[{"$f":"IFERROR(VLOOKUP(X2,Validation!AE:AF,2,FALSE),\"\")","v":""},{"$f":"IF(AND('Equipment Input'!L23=\"Purchased\", 'Equipment Input'!N23>0), \"Yes\", IF(AND('Equipment Input'!L23=\"Leased\", 'Equipment Input'!M23>23), \"Yes\", \"No\"))","v":"No"},{"$f":"'Equipment Input'!C23","v":0},null,{"$f":"IFERROR('Equipment Input'!P23/IF(Y2=0,1,Y2), \"\")","v":""},{"$f":"IF(OR(E2=\"\",Y2=\"\"),\"\",E2)","v":""},{"$f":"'Equipment Input'!E23","v":0},{"$f":"SUM('Equipment Input'!T23,'Equipment Input'!U23,'Equipment Input'!V23)/IF(Y2=0,1,Y2)","v":0},{"$f":"H2","v":0},null,null,null,{"$f":"I2","v":0},null,null,{"$f":"SUM('Equipment Input'!Q23,'Equipment Input'!R23,'Equipment Input'!S23)/IF(Y2=0,1,Y2)","v":0},null,{"$f":"'Equipment Input'!F23","v":0},{"$f":"IF(AA2=\"Leased\", 'Equipment Input'!M23/12, IF(ISERROR(VLOOKUP(X2, Validation!$AE$3:$AG$56, 3, FALSE)), 0, VLOOKUP(X2, Validation!$AE$3:$AG$56, 3, FALSE)))","v":0},null,null,{"$f":"'Equipment Input'!H23","v":0},null,{"$f":"CONCATENATE('Equipment Input'!D23, \" \", 'Equipment Input'!E23)","v":" "},{"$f":"'Equipment Input'!N23","v":0},{"$f":"IF(B2=\"Yes\", 'Version Tracking'!$C$4, \"\")","v":""},{"$f":"'Equipment Input'!L23","v":0}]
[{"$f":"IFERROR(VLOOKUP(X3,Validation!AE:AF,2,FALSE),\"\")","v":""},{"$f":"IF(AND('Equipment Input'!L24=\"Purchased\", 'Equipment Input'!N24>0), \"Yes\", IF(AND('Equipment Input'!L24=\"Leased\", 'Equipment Input'!M24>23), \"Yes\", \"No\"))","v":"No"},{"$f":"'Equipment Input'!C24","v":0},null,{"$f":"IFERROR('Equipment Input'!P24/IF(Y3=0,1,Y3), \"\")","v":""},"",{"$f":"'Equipment Input'!E24","v":0},{"$f":"SUM('Equipment Input'!T24,'Equipment Input'!U24,'Equipment Input'!V24)/IF(Y3=0,1,Y3)","v":0},{"$f":"H3","v":0},null,null,null,{"$f":"I3","v":0},null,null,{"$f":"SUM('Equipment Input'!Q24,'Equipment Input'!R24,'Equipment Input'!S24)/IF(Y3=0,1,Y3)","v":0},null,{"$f":"'Equipment Input'!F24","v":0},{"$f":"IF(ISERROR(VLOOKUP(X3,Validation!$AE$3:$AG$56,3,FALSE)),0,VLOOKUP(X3,Validation!$AE$3:$AG$56,3,FALSE))","v":0},null,null,{"$f":"'Equipment Input'!H24","v":0},null,{"$f":"CONCATENATE('Equipment Input'!D24, \" \", 'Equipment Input'!E24)","v":" "},{"$f":"'Equipment Input'!N24","v":0},{"$f":"IF(B3=\"Yes\", 'Version Tracking'!$C$4, \"\")","v":""},{"$f":"'Equipment Input'!L24","v":0}]
[{"$f":"IFERROR(VLOOKUP(X4,Validation!AE:AF,2,FALSE),\"\")","v":""},{"$f":"IF(AND('Equipment Input'!L25=\"Purchased\", 'Equipment Input'!N25>0), \"Yes\", IF(AND('Equipment Input'!L25=\"Leased\", 'Equipment Input'!M25>23), \"Yes\", \"No\"))","v":"No"},{"$f":"'Equipment Input'!C25","v":0},null,{"$f":"IFERROR('Equipment Input'!P25/IF(Y4=0,1,Y4), \"\")","v":""},"",{"$f":"'Equipment Input'!E25","v":0},{"$f":"SUM('Equipment Input'!T25,'Equipment Input'!U25,'Equipment Input'!V25)/IF(Y4=0,1,Y4)","v":0},0,null,null,null,0,null,null,{"$f":"SUM('Equipment Input'!Q25,'Equipment Input'!R25,'Equipment Input'!S25)/IF(Y4=0,1,Y4)","v":0},null,{"$f":"'Equipment Input'!F25","v":0},{"$f":"IF(ISERROR(VLOOKUP(X4,Validation!$AE$3:$AG$56,3,FALSE)),0,VLOOKUP(X4,Validation!$AE$3:$AG$56,3,FALSE))","v":0},null,null,{"$f":"'Equipment Input'!H25","v":0},null,{"$f":"CONCATENATE('Equipment Input'!D25, \" \", 'Equipment Input'!E25)","v":" "},{"$f":"'Equipment Input'!N25","v":0},{"$f":"IF(B4=\"Yes\", 'Version Tracking'!$C$4, \"\")","v":""},{"$f":"'Equipment Input'!L25","v":0}]
[{"$f":"IFERROR(VLOOKUP(X5,Validation!AE:AF,2,FALSE),\"\")","v":""},{"$f":"IF(AND('Equipment Input'!L26=\"Purchased\", 'Equipment Input'!N26>0), \"Yes\", IF(AND('Equipment Input'!L26=\"Leased\", 'Equipment Input'!M26>23), \"Yes\", \"No\"))","v":"No"},{"$f":"'Equipment Input'!C26","v":0},null,{"$f":"IFERROR('Equipment Input'!P26/IF(Y5=0,1,Y5), \"\")","v":""},"",{"$f":"'Equipment Input'!E26","v":0},{"$f":"SUM('Equipment Input'!T26,'Equipment Input'!U26,'Equipment Input'!V26)/IF(Y5=0,1,Y5)","v":0},0,null,null,null,0,null,null,{"$f":"SUM('Equipment Input'!Q26,'Equipment Input'!R26,'Equipment Input'!S26)/IF(Y5=0,1,Y5)","v":0},null,{"$f":"'Equipment Input'!F26","v":0},{"$f":"IF(ISERROR(VLOOKUP(X5,Validation!$AE$3:$AG$56,3,FALSE)),0,VLOOKUP(X5,Validation!$AE$3:$AG$56,3,FALSE))","v":0},null,null,{"$f":"'Equipment Input'!H26","v":0},null,{"$f":"CONCATENATE('Equipment Input'!D26, \" \", 'Equipment Input'!E26)","v":" "},{"$f":"'Equipment Input'!N26","v":0},{"$f":"IF(B5=\"Yes\", 'Version Tracking'!$C$4, \"\")","v":""},{"$f":"'Equipment Input'!L26","v":0}]
[{"$f":"IFERROR(VLOOKUP(X6,Validation!AE:AF,2,FALSE),\"\")","v":""},{"$f":"IF(AND('Equipment Input'!L27=\"Purchased\", 'Equipment Input'!N27>0), \"Yes\", IF(AND('Equipment Input'!L27=\"Leased\", 'Equipment Input'!M27>23), \"Yes\", \"No\"))","v":"No"},{"$f":"'Equipment Input'!C27","v":0},null,{"$f":"IFERROR('Equipment Input'!P27/IF(Y6=0,1,Y6), \"\")","v":""},"",{"$f":"'Equipment Input'!E27","v":0},{"$f":"SUM('Equipment Input'!T27,'Equipment Input'!U27,'Equipment Input'!V27)/IF(Y6=0,1,Y6)","v":0},0,null,null,null,0,null,null,{"$f":"SUM('Equipment Input'!Q27,'Equipment Input'!R27,'Equipment Input'!S27)/IF(Y6=0,1,Y6)","v":0},null,{"$f":"'Equipment Input'!F27","v":0},{"$f":"IF(ISERROR(VLOOKUP(X6,Validation!$AE$3:$AG$56,3,FALSE)),0,VLOOKUP(X6,Validation!$AE$3:$AG$56,3,FALSE))","v":0},null,null,{"$f":"'Equipment Input'!H27","v":0},null,{"$f":"CONCATENATE('Equipment Input'!D27, \" \", 'Equipment Input'!E27)","v":" "},{"$f":"'Equipment Input'!N27","v":0},{"$f":"IF(B6=\"Yes\", 'Version Tracking'!$C$4, \"\")","v":""},{"$f":"'Equipment Input'!L27","v":0}]
[{"$f":"IFERROR(VLOOKUP(X7,Validation!AE:AF,2,FALSE),\"\")","v":""},{"$f":"IF(AND('Equipment Input'!L28=\"Purchased\", 'Equipment Input'!N28>0), \"Yes\", IF(AND('Equipment Input'!L28=\"Leased\", 'Equipment Input'!M28>23), \"Yes\", \"No\"))","v":"No"},{"$f":"'Equipment Input'!C28","v":0},null,{"$f":"IFERROR('Equipment Input'!P28/IF(Y7=0,1,Y7), \"\")","v":""},"",{"$f":"'Equipment Input'!E28","v":0},{"$f":"SUM('Equipment Input'!T28,'Equipment Input'!U28,'Equipment Input'!V28)/IF(Y7=0,1,Y7)","v":0},0,null,null,null,0,null,null,{"$f":"SUM('Equipment Input'!Q28,'Equipment Input'!R28,'Equipment Input'!S28)/IF(Y7=0,1,Y7)","v":0},null,{"$f":"'Equipment Input'!F28","v":0},{"$f":"IF(ISERROR(VLOOKUP(X7,Validation!$AE$3:$AG$56,3,FALSE)),0,VLOOKUP(X7,Validation!$AE$3:$AG$56,3,FALSE))","v":0},null,null,{"$f":"'Equipment Input'!H28","v":0},null,{"$f":"CONCATENATE('Equipment Input'!D28, \" \", 'Equipment Input'!E28)","v":" "},{"$f":"'Equipment Input'!N28","v":0},{"$f":"IF(B7=\"Yes\", 'Version Tracking'!$C$4, \"\")","v":""},{"$f":"'Equipment Input'!L28","v":0}]
[{"$f":"IFERROR(VLOOKUP(X8,Validation!AE:AF,2,FALSE),\"\")","v":""},{"$f":"IF(AND('Equipment Input'!L29=\"Purchased\", 'Equipment Input'!N29>0), \"Yes\", IF(AND('Equipment Input'!L29=\"Leased\", 'Equipment Input'!M29>23), \"Yes\", \"No\"))","v":"No"},{"$f":"'Equipment Input'!C29","v":0},null,{"$f":"IFERROR('Equipment Input'!P29/IF(Y8=0,1,Y8), \"\")","v":""},"",{"$f":"'Equipment Input'!E29","v":0},{"$f":"SUM('Equipment Input'!T29,'Equipment Input'!U29,'Equipment Input'!V29)/IF(Y8=0,1,Y8)","v":0},0,null,null,null,0,null,null,{"$f":"SUM('Equipment Input'!Q29,'Equipment Input'!R29,'Equipment Input'!S29)/IF(Y8=0,1,Y8)","v":0},null,{"$f":"'Equipment Input'!F29","v":0},{"$f":"IF(ISERROR(VLOOKUP(X8,Validation!$AE$3:$AG$56,3,FALSE)),0,VLOOKUP(X8,Validation!$AE$3:$AG$56,3,FALSE))","v":0},null,null,{"$f":"'Equipment Input'!H29","v":0},null,{"$f":"CONCATENATE('Equipment Input'!D29, \" \", 'Equipment Input'!E29)","v":" "},{"$f":"'Equipment Input'!N29","v":0},{"$f":"IF(B8=\"Yes\", 'Version Tracking'!$C$4, \"\")","v":""},{"$f":"'Equipment Input'!L29","v":0}]
[{"$f":"IFERROR(VLOOKUP(X9,Validation!AE:AF,2,FALSE),\"\")","v":""},{"$f":"IF(AND('Equipment Input'!L30=\"Purchased\", 'Equipment Input'!N30>0), \"Yes\", IF(AND('Equipment Input'!L30=\"Leased\", 'Equipment Input'!M30>23), \"Yes\", \"No\"))","v":"No"},{"$f":"'Equipment Input'!C30","v":0},null,{"$f":"IFERROR('Equipment Input'!P30/IF(Y9=0,1,Y9), \"\")","v":""},"",{"$f":"'Equipment Input'!E30","v":0},{"$f":"SUM('Equipment Input'!T30,'Equipment Input'!U30,'Equipment Input'!V30)/IF(Y9=0,1,Y9)","v":0},0,null,null,null,0,null,null,{"$f":"SUM('Equipment Input'!Q30,'Equipment Input'!R30,'Equipment Input'!S30)/IF(Y9=0,1,Y9)","v":0},null,{"$f":"'Equipment Input'!F30","v":0},{"$f":"IF(ISERROR(VLOOKUP(X9,Validation!$AE$3:$AG$56,3,FALSE)),0,VLOOKUP(X9,Validation!$AE$3:$AG$56,3,FALSE))","v":0},null,null,{"$f":"'Equipment Input'!H30","v":0},null,{"$f":"CONCATENATE('Equipment Input'!D30, \" \", 'Equipment Input'!E30)","v":" "},{"$f":"'Equipment Input'!N30","v":0},{"$f":"IF(B9=\"Yes\", 'Version Tracking'!$C$4, \"\")","v":""},{"$f":"'Equipment Input'!L30","v":0}]
[{"$f":"IFERROR(VLOOKUP(X10,Validation!AE:AF,2,FALSE),\"\")","v":""},{"$f":"IF(AND('Equipment Input'!L31=\"Purchased\", 'Equipment Input'!N31>0), \"Yes\", IF(AND('Equipment Input'!L31=\"Leased\", 'Equipment Input'!M31>23), \"Yes\", \"No\"))","v":"No"},{"$f":"'Equipment Input'!C31","v":0},null,{"$f":"IFERROR('Equipment Input'!P31/IF(Y10=0,1,Y10), \"\")","v":""},"",{"$f":"'Equipment Input'!E31","v":0},{"$f":"SUM('Equipment Input'!T31,'Equipment Input'!U31,'Equipment Input'!V31)/IF(Y10=0,1,Y10)","v":0},0,null,null,null,0,null,null,{"$f":"SUM('Equipment Input'!Q31,'Equipment Input'!R31,'Equipment Input'!S31)/IF(Y10=0,1,Y10)","v":0},null,{"$f":"'Equipment Input'!F31","v":0},{"$f":"IF(ISERROR(VLOOKUP(X10,Validation!$AE$3:$AG$56,3,FALSE)),0,VLOOKUP(X10,Validation!$AE$3:$AG$56,3,FALSE))","v":0},null,null,{"$f":"'Equipment Input'!H31","v":0},null,{"$f":"CONCATENATE('Equipment Input'!D31, \" \", 'Equipment Input'!E31)","v":" "},{"$f":"'Equipment Input'!N31","v":0},{"$f":"IF(B10=\"Yes\", 'Version Tracking'!$C$4, \"\")","v":""},{"$f":"'Equipment Input'!L31","v":0}]
[{"$f":"IFERROR(VLOOKUP(X11,Validation!AE:AF,2,FALSE),\"\")","v":""},{"$f":"IF(AND('Equipment Input'!L32=\"Purchased\", 'Equipment Input'!N32>0), \"Yes\", IF(AND('Equipment Input'!L32=\"Leased\", 'Equipment Input'!M32>23), \"Yes\", \"No\"))","v":"No"},{"$f":"'Equipment Input'!C32","v":0},null,{"$f":"IFERROR('Equipment Input'!P32/IF(Y11=0,1,Y11), \"\")","v":""},"",{"$f":"'Equipment Input'!E32","v":0},{"$f":"SUM('Equipment Input'!T32,'Equipment Input'!U32,'Equipment Input'!V32)/IF(Y11=0,1,Y11)","v":0},0,null,null,null,0,null,null,{"$f":"SUM('Equipment Input'!Q32,'Equipment Input'!R32,'Equipment Input'!S32)/IF(Y11=0,1,Y11)","v":0},null,{"$f":"'Equipment Input'!F32","v":0},{"$f":"IF(ISERROR(VLOOKUP(X11,Validation!$AE$3:$AG$56,3,FALSE)),0,VLOOKUP(X11,Validation!$AE$3:$AG$56,3,FALSE))","v":0},null,null,{"$f":"'Equipment Input'!H32","v":0},null,{"$f":"CONCATENATE('Equipment Input'!D32, \" \", 'Equipment Input'!E32)","v":" "},{"$f":"'Equipment Input'!N32","v":0},{"$f":"IF(B11=\"Yes\", 'Version Tracking'!$C$4, \"\")","v":""},{"$f":"'Equipment Input'!L32","v":0}]
[{"$f":"IFERROR(VLOOKUP(X12,Validation!AE:AF,2,FALSE),\"\")","v":""},{"$f":"IF(AND('Equipment Input'!L33=\"Purchased\", 'Equipment Input'!N33>0), \"Yes\", IF(AND('Equipment Input'!L33=\"Leased\", 'Equipment Input'!M33>23), \"Yes\", \"No\"))","v":"No"},{"$f":"'Equipment Input'!C33","v":0},null,{"$f":"IFERROR('Equipment Input'!P33/IF(Y12=0,1,Y12), \"\")","v":""},"",{"$f":"'Equipment Input'!E33","v":0},{"$f":"SUM('Equipment Input'!T33,'Equipment Input'!U33,'Equipment Input'!V33)/IF(Y12=0,1,Y12)","v":0},0,null,null,null,0,null,null,{"$f":"SUM('Equipment Input'!Q33,'Equipment Input'!R33,'Equipment Input'!S33)/IF(Y12=0,1,Y12)","v":0},null,{"$f":"'Equipment Input'!F33","v":0},{"$f":"IF(ISERROR(VLOOKUP(X12,Validation!$AE$3:$AG$56,3,FALSE)),0,VLOOKUP(X12,Validation!$AE$3:$AG$56,3,FALSE))","v":0},null,null,{"$f":"'Equipment Input'!H33","v":0},null,{"$f":"CONCATENATE('Equipment Input'!D33, \" \", 'Equipment Input'!E33)","v":" "},{"$f":"'Equipment Input'!N33","v":0},{"$f":"IF(B12=\"Yes\", 'Version Tracking'!$C$4, \"\")","v":""},{"$f":"'Equipment Input'!L33","v":0}]
[{"$f":"IFERROR(VLOOKUP(X13,Validation!AE:AF,2,FALSE),\"\")","v":""},{"$f":"IF(AND('Equipment Input'!L34=\"Purchased\", 'Equipment Input'!N34>0), \"Yes\", IF(AND('Equipment Input'!L34=\"Leased\", 'Equipment Input'!M34>23), \"Yes\", \"No\"))","v":"No"},{"$f":"'Equipment Input'!C34","v":0},null,{"$f":"IFERROR('Equipment Input'!P34/IF(Y13=0,1,Y13), \"\")","v":""},"",{"$f":"'Equipment Input'!E34","v":0},{"$f":"SUM('Equipment Input'!T34,'Equipment Input'!U34,'Equipment Input'!V34)/IF(Y13=0,1,Y13)","v":0},0,null,null,null,0,null,null,{"$f":"SUM('Equipment Input'!Q34,'Equipment Input'!R34,'Equipment Input'!S34)/IF(Y13=0,1,Y13)","v":0},null,{"$f":"'Equipment Input'!F34","v":0},{"$f":"IF(ISERROR(VLOOKUP(X13,Validation!$AE$3:$AG$56,3,FALSE)),0,VLOOKUP(X13,Validation!$AE$3:$AG$56,3,FALSE))","v":0},null,null,{"$f":"'Equipment Input'!H34","v":0},null,{"$f":"CONCATENATE('Equipment Input'!D34, \" \", 'Equipment Input'!E34)","v":" "},{"$f":"'Equipment Input'!N34","v":0},{"$f":"IF(B13=\"Yes\", 'Version Tracking'!$C$4, \"\")","v":""},{"$f":"'Equipment Input'!L34","v":0}]
[{"$f":"IFERROR(VLOOKUP(X14,Validation!AE:AF,2,FALSE),\"\")","v":""},{"$f":"IF(AND('Equipment Input'!L35=\"Purchased\", 'Equipment Input'!N35>0), \"Yes\", IF(AND('Equipment Input'!L35=\"Leased\", 'Equipment Input'!M35>23), \"Yes\", \"No\"))","v":"No"},{"$f":"'Equipment Input'!C35","v":0},null,{"$f":"IFERROR('Equipment Input'!P35/IF(Y14=0,1,Y14), \"\")","v":""},"",{"$f":"'Equipment Input'!E35","v":0},{"$f":"SUM('Equipment Input'!T35,'Equipment Input'!U35,'Equipment Input'!V35)/IF(Y14=0,1,Y14)","v":0},0,null,null,null,0,null,null,{"$f":"SUM('Equipment Input'!Q35,'Equipment Input'!R35,'Equipment Input'!S35)/IF(Y14=0,1,Y14)","v":0},null,{"$f":"'Equipment Input'!F35","v":0},{"$f":"IF(ISERROR(VLOOKUP(X14,Validation!$AE$3:$AG$56,3,FALSE)),0,VLOOKUP(X14,Validation!$AE$3:$AG$56,3,FALSE))","v":0},null,null,{"$f":"'Equipment Input'!H35","v":0},null,{"$f":"CONCATENATE('Equipment Input'!D35, \" \", 'Equipment Input'!E35)","v":" "},{"$f":"'Equipment Input'!N35","v":0},{"$f":"IF(B14=\"Yes\", 'Version Tracking'!$C$4, \"\")","v":""},{"$f":"'Equipment Input'!L35","v":0}]
[{"$f":"IFERROR(VLOOKUP(X15,Validation!AE:AF,2,FALSE),\"\")","v":""},{"$f":"IF(AND('Equipment Input'!L36=\"Purchased\", 'Equipment Input'!N36>0), \"Yes\", IF(AND('Equipment Input'!L36=\"Leased\", 'Equipment Input'!M36>23), \"Yes\", \"No\"))","v":"No"},{"$f":"'Equipment Input'!C36","v":0},null,{"$f":"IFERROR('Equipment Input'!P36/IF(Y15=0,1,Y15), \"\")","v":""},"",{"$f":"'Equipment Input'!E36","v":0},{"$f":"SUM('Equipment Input'!T36,'Equipment Input'!U36,'Equipment Input'!V36)/IF(Y15=0,1,Y15)","v":0},0,null,null,null,0,null,null,{"$f":"SUM('Equipment Input'!Q36,'Equipment Input'!R36,'Equipment Input'!S36)/IF(Y15=0,1,Y15)","v":0},null,{"$f":"'Equipment Input'!F36","v":0},{"$f":"IF(ISERROR(VLOOKUP(X15,Validation!$AE$3:$AG$56,3,FALSE)),0,VLOOKUP(X15,Validation!$AE$3:$AG$56,3,FALSE))","v":0},null,null,{"$f":"'Equipment Input'!H36","v":0},null,{"$f":"CONCATENATE('Equipment Input'!D36, \" \", 'Equipment Input'!E36)","v":" "},{"$f":"'Equipment Input'!N36","v":0},{"$f":"IF(B15=\"Yes\", 'Version Tracking'!$C$4, \"\")","v":""},{"$f":"'Equipment Input'!L36","v":0}]
[{"$f":"IFERROR(VLOOKUP(X16,Validation!AE:AF,2,FALSE),\"\")","v":""},{"$f":"IF(AND('Equipment Input'!L37=\"Purchased\", 'Equipment Input'!N37>0), \"Yes\", IF(AND('Equipment Input'!L37=\"Leased\", 'Equipment Input'!M37>23), \"Yes\", \"No\"))","v":"No"},{"$f":"'Equipment Input'!C37","v":0},null,{"$f":"IFERROR('Equipment Input'!P37/IF(Y16=0,1,Y16), \"\")","v":""},"",{"$f":"'Equipment Input'!E37","v":0},{"$f":"SUM('Equipment Input'!T37,'Equipment Input'!U37,'Equipment Input'!V37)/IF(Y16=0,1,Y16)","v":0},0,null,null,null,0,null,null,{"$f":"SUM('Equipment Input'!Q37,'Equipment Input'!R37,'Equipment Input'!S37)/IF(Y16=0,1,Y16)","v":0},null,{"$f":"'Equipment Input'!F37","v":0},{"$f":"IF(ISERROR(VLOOKUP(X16,Validation!$AE$3:$AG$56,3,FALSE)),0,VLOOKUP(X16,Validation!$AE$3:$AG$56,3,FALSE))","v":0},null,null,{"$f":"'Equipment Input'!H37","v":0},null,{"$f":"CONCATENATE('Equipment Input'!D37, \" \", 'Equipment Input'!E37)","v":" "},{"$f":"'Equipment Input'!N37","v":0},{"$f":"IF(B16=\"Yes\", 'Version Tracking'!$C$4, \"\")","v":""},{"$f":"'Equipment Input'!L37","v":0}]
[{"$f":"IFERROR(VLOOKUP(X17,Validation!AE:AF,2,FALSE),\"\")","v":""},{"$f":"IF(AND('Equipment Input'!L38=\"Purchased\", 'Equipment Input'!N38>0), \"Yes\", IF(AND('Equipment Input'!L38=\"Leased\", 'Equipment Input'!M38>23), \"Yes\", \"No\"))","v":"No"},{"$f":"'Equipment Input'!C38","v":0},null,{"$f":"IFERROR('Equipment Input'!P38/IF(Y17=0,1,Y17), \"\")","v":""},"",{"$f":"'Equipment Input'!E38","v":0},{"$f":"SUM('Equipment Input'!T38,'Equipment Input'!U38,'Equipment Input'!V38)/IF(Y17=0,1,Y17)","v":0},0,null,null,null,0,null,null,{"$f":"SUM('Equipment Input'!Q38,'Equipment Input'!R38,'Equipment Input'!S38)/IF(Y17=0,1,Y17)","v":0},null,{"$f":"'Equipment Input'!F38","v":0},{"$f":"IF(ISERROR(VLOOKUP(X17,Validation!$AE$3:$AG$56,3,FALSE)),0,VLOOKUP(X17,Validation!$AE$3:$AG$56,3,FALSE))","v":0},null,null,{"$f":"'Equipment Input'!H38","v":0},null,{"$f":"CONCATENATE('Equipment Input'!D38, \" \", 'Equipment Input'!E38)","v":" "},{"$f":"'Equipment Input'!N38","v":0},{"$f":"IF(B17=\"Yes\", 'Version Tracking'!$C$4, \"\")","v":""},{"$f":"'Equipment Input'!L38","v":0}]
[{"$f":"IFERROR(VLOOKUP(X18,Validation!AE:AF,2,FALSE),\"\")","v":""},{"$f":"IF(AND('Equipment Input'!L39=\"Purchased\", 'Equipment Input'!N39>0), \"Yes\", IF(AND('Equipment Input'!L39=\"Leased\", 'Equipment Input'!M39>23), \"Yes\", \"No\"))","v":"No"},{"$f":"'Equipment Input'!C39","v":0},null,{"$f":"IFERROR('Equipment Input'!P39/IF(Y18=0,1,Y18), \"\")","v":""},"",{"$f":"'Equipment Input'!E39","v":0},{"$f":"SUM('Equipment Input'!T39,'Equipment Input'!U39,'Equipment Input'!V39)/IF(Y18=0,1,Y18)","v":0},0,null,null,null,0,null,null,{"$f":"SUM('Equipment Input'!Q39,'Equipment Input'!R39,'Equipment Input'!S39)/IF(Y18=0,1,Y18)","v":0},null,{"$f":"'Equipment Input'!F39","v":0},{"$f":"IF(ISERROR(VLOOKUP(X18,Validation!$AE$3:$AG$56,3,FALSE)),0,VLOOKUP(X18,Validation!$AE$3:$AG$56,3,FALSE))","v":0},null,null,{"$f":"'Equipment Input'!H39","v":0},null,{"$f":"CONCATENATE('Equipment Input'!D39, \" \", 'Equipment Input'!E39)","v":" "},{"$f":"'Equipment Input'!N39","v":0},{"$f":"IF(B18=\"Yes\", 'Version Tracking'!$C$4, \"\")","v":""},{"$f":"'Equipment Input'!L39","v":0}]
[{"$f":"IFERROR(VLOOKUP(X19,Validation!AE:AF,2,FALSE),\"\")","v":""},{"$f":"IF(AND('Equipment Input'!L40=\"Purchased\", 'Equipment Input'!N40>0), \"Yes\", IF(AND('Equipment Input'!L40=\"Leased\", 'Equipment Input'!M40>23), \"Yes\", \"No\"))","v":"No"},{"$f":"'Equipment Input'!C40","v":0},null,{"$f":"IFERROR('Equipment Input'!P40/IF(Y19=0,1,Y19), \"\")","v":""},"",{"$f":"'Equipment Input'!E40","v":0},{"$f":"SUM('Equipment Input'!T40,'Equipment Input'!U40,'Equipment Input'!V40)/IF(Y19=0,1,Y19)","v":0},0,null,null,null,0,null,null,{"$f":"SUM('Equipment Input'!Q40,'Equipment Input'!R40,'Equipment Input'!S40)/IF(Y19=0,1,Y19)","v":0},null,{"$f":"'Equipment Input'!F40","v":0},{"$f":"IF(ISERROR(VLOOKUP(X19,Validation!$AE$3:$AG$56,3,FALSE)),0,VLOOKUP(X19,Validation!$AE$3:$AG$56,3,FALSE))","v":0},null,null,{"$f":"'Equipment Input'!H40","v":0},null,{"$f":"CONCATENATE('Equipment Input'!D40, \" \", 'Equipment Input'!E40)","v":" "},{"$f":"'Equipment Input'!N40","v":0},{"$f":"IF(B19=\"Yes\", 'Version Tracking'!$C$4, \"\")","v":""},{"$f":"'Equipment Input'!L40","v":0}]
[{"$f":"IFERROR(VLOOKUP(X20,Validation!AE:AF,2,FALSE),\"\")","v":""},{"$f":"IF(AND('Equipment Input'!L41=\"Purchased\", 'Equipment Input'!N41>0), \"Yes\", IF(AND('Equipment Input'!L41=\"Leased\", 'Equipment Input'!M41>23), \"Yes\", \"No\"))","v":"No"},{"$f":"'Equipment Input'!C41","v":0},null,{"$f":"IFERROR('Equipment Input'!P41/IF(Y20=0,1,Y20), \"\")","v":""},"",{"$f":"'Equipment Input'!E41","v":0},{"$f":"SUM('Equipment Input'!T41,'Equipment Input'!U41,'Equipment Input'!V41)/IF(Y20=0,1,Y20)","v":0},0,null,null,null,0,null,null,{"$f":"SUM('Equipment Input'!Q41,'Equipment Input'!R41,'Equipment Input'!S41)/IF(Y20=0,1,Y20)","v":0},null,{"$f":"'Equipment Input'!F41","v":0},{"$f":"IF(ISERROR(VLOOKUP(X20,Validation!$AE$3:$AG$56,3,FALSE)),0,VLOOKUP(X20,Validation!$AE$3:$AG$56,3,FALSE))","v":0},null,null,{"$f":"'Equipment Input'!H41","v":0},null,{"$f":"CONCATENATE('Equipment Input'!D41, \" \", 'Equipment Input'!E41)","v":" "},{"$f":"'Equipment Input'!N41","v":0},{"$f":"IF(B20=\"Yes\", 'Version Tracking'!$C$4, \"\")","v":""},{"$f":"'Equipment Input'!L41","v":0}]
[{"$f":"IFERROR(VLOOKUP(X21,Validation!AE:AF,2,FALSE),\"\")","v":""},{"$f":"IF(AND('Equipment Input'!L42=\"Purchased\", 'Equipment Input'!N42>0), \"Yes\", IF(AND('Equipment Input'!L42=\"Leased\", 'Equipment Input'!M42>23), \"Yes\", \"No\"))","v":"No"},{"$f":"'Equipment Input'!C42","v":0},null,{"$f":"IFERROR('Equipment Input'!P42/IF(Y21=0,1,Y21), \"\")","v":""},"",{"$f":"'Equipment Input'!E42","v":0},{"$f":"SUM('Equipment Input'!T42,'Equipment Input'!U42,'Equipment Input'!V42)/IF(Y21=0,1,Y21)","v":0},0,null,null,null,0,null,null,{"$f":"SUM('Equipment Input'!Q42,'Equipment Input'!R42,'Equipment Input'!S42)/IF(Y21=0,1,Y21)","v":0},null,{"$f":"'Equipment Input'!F42","v":0},{"$f":"IF(ISERROR(VLOOKUP(X21,Validation!$AE$3:$AG$56,3,FALSE)),0,VLOOKUP(X21,Validation!$AE$3:$AG$56,3,FALSE))","v":0},null,null,{"$f":"'Equipment Input'!H42","v":0},null,{"$f":"CONCATENATE('Equipment Input'!D42, \" \", 'Equipment Input'!E42)","v":" "},{"$f":"'Equipment Input'!N42","v":0},{"$f":"IF(B21=\"Yes\", 'Version Tracking'!$C$4, \"\")","v":""},{"$f":"'Equipment Input'!L42","v":0}]